{"text_format":"2","workbook":"xlsx","n_sheets":13,"sheets":["Instructions and Summary","SF-424A (Rev. 4-92) ","SF-424A","a. Personnel","b. Fringe Benefits","c. Travel","d. Equipment","e. Supplies","f. Contractual","g. Construction","h. Other","i. Indirect Costs","Cost Share"],"not_rendered":{"charts":0,"images":3,"macros":0,"external_links":0,"defined_names":48,"comments":0,"pivot_tables":0},"unopened":[],"bounds":{"document_bytes":16777216,"sheet_cells":100000,"run_cost":"one","rows_first":2000,"rows_last":500,"rows_between":2000,"halvings":0,"cell_chars":16384,"cell_head_chars":4096},"cells_cut":0,"cells_raw":0,"read":"whole","date_system":"1900"}

{"sheet":"Instructions and Summary","index":0,"n_rows":26,"n_cols":8,"rows_kept":26,"cut":false,"hidden":false,"merged":[[1,0,1,7],[2,1,2,2],[2,3,2,6],[25,0,25,2],[0,5,0,6],[0,0,0,2],[26,0,26,7],[3,1,3,2],[3,3,3,6],[5,0,5,7],[6,0,6,7],[8,0,8,7]]}
["Budget Justification for SF 424A Budget",{"$nulls":4},"Last Updated / Version # :",null,"06/21/18   V 6.18"]
["Instructions and Summary"]
["Control Number:",null,null,"Original Date of Submission:"]
["Award Recipient:",null,null,"Submitted by: ",null,null,null,"(Recipient or Subrecipient)"]
[]
["Please read the instructions on each tab before starting.  \nIf you have any questions, please submit to ARPA-E-CO@hq.doe.gov.  It will save you time!  Double check all fields highlighted in yellow!"]
["• This worksheet auto populates when data is entered on subsequent tabs (a. Personnel, b. Fringe Benefits, c. Travel, d. Equipment, e. Supplies, f. Contractual, g. Other, h. Indirect Costs, Cost Share). The term “tab” refers to a worksheet within the Budget Justification Workbook.  Each tab may be found and accessed at the bottom of this Workbook. On this Instructions and Summary tab the award recipient should update Control Number, Award Recipient, Original Date of Submission, Submitted By and the Comments section as needed. If this is a new version please ensure to update the Last Updated / Version # in the top right of this sheet. X\n\n• The Prime Recipient must complete this Budget Justification Workbook.  In addition, each Subrecipient incurring greater than or equal to 10% of the Total Project Cost must complete an additional Budget Justification Workbook to justify its proposed budget.  The Subrecipient's Budget Justification Workbook total project costs must match the amount on tab f. Contractual in the Prime Recipient’s Budget Justification Workbook. All documents should be submitted as one package to ARPA-E, however, Subrecipients can provide budget documents directly to ARPA-E if necessary. The Prime Recipient’s Budget Justification Workbook will not be reviewed until all supporting documentation is submitted.\n\n• The total budget presented in the Budget Justification Workbook and the SF-424A must include both Federal (ARPA-E) and Non-Federal (cost share) expenditures, the sum of which equals the Total Project Cost proposed by the Applicant.  All costs, whether paid with Federal funding or by the Project Team, must be justified.  \n\n• Each budget category will automatically populate in the second tab in this Budget Justification Workbook (SF-424A).  The totals in each budget category and the Total Project Cost must be the same in the SF-424A and the Budget Justification Workbook.  The award recipient must review the SF-424A, fill in the award number and fill in Section D (Projected Cash Flows) in the SF-424A tab.\n\n• All costs incurred by the Prime Recipient’s Subrecipients, vendors, contractors, consultants and Federally Funded Research and Development Centers (FFRDCs), must be entered in tab f. Contractual.  All other sections are for the costs of the Prime Recipient only.\n\n• No individual may be paid more than $200,000 per year under an ARPA-E funding agreement. \n\n• All expenditures must be allowable, allocable, and reasonable in accordance with the applicable Federal cost principles.  "]
[]
["SUMMARY OF BUDGET CATEGORY COSTS PROPOSED\n(Note: The values in this summary table are from entries made in each budget category tab.)"]
["CATEGORY","Phase I (12 Months)","Phase II-Year 1(12 Months)","Phase II-Year 2 (12 Months)","Phase IIS (12 Months)","Total","Project Costs %","Comments\n(Add comments as needed)"]
["a. Personnel",{"$f":"ROUND('a. Personnel'!E182,0)","v":0},{"$f":"ROUND('a. Personnel'!H182,0)","v":0},{"$f":"ROUND('a. Personnel'!K182,0)","v":0},{"$f":"ROUND('a. Personnel'!N182,0)","v":0},{"$f":"SUM(B11:E11)","v":0},{"$f":"IFERROR(F11/$F$24,\"\")","v":""}]
["b. Fringe Benefits",{"$f":"ROUND('b. Fringe Benefits'!D10,0)","v":0},{"$f":"ROUND('b. Fringe Benefits'!E10,0)","v":0},{"$f":"ROUND('b. Fringe Benefits'!F10,0)","v":0},{"$f":"ROUND('b. Fringe Benefits'!G10,0)","v":0},{"$f":"SUM(B12:E12)","v":0},{"$f":"IFERROR(F12/$F$24,\"\")","v":""}]
["c. Travel",{"$f":"ROUND('c. Travel'!G49,0)","v":0},{"$f":"ROUND('c. Travel'!G96,0)","v":0},{"$f":"ROUND('c. Travel'!G146,0)","v":0},{"$f":"ROUND('c. Travel'!G196,0)","v":0},{"$f":"SUM(B13:E13)","v":0},{"$f":"IFERROR(F13/$F$24,\"\")","v":""}]
["d. Equipment",{"$f":"ROUND('d. Equipment'!D44,0)","v":0},{"$f":"ROUND('d. Equipment'!D95,0)","v":0},{"$f":"ROUND('d. Equipment'!D151,0)","v":0},{"$f":"ROUND('d. Equipment'!D207,0)","v":0},{"$f":"SUM(B14:E14)","v":0},{"$f":"IFERROR(F14/$F$24,\"\")","v":""}]
["e. Supplies",{"$f":"ROUND('e. Supplies'!D80,0)","v":0},{"$f":"ROUND('e. Supplies'!D152,0)","v":0},{"$f":"ROUND('e. Supplies'!D222,0)","v":0},{"$f":"ROUND('e. Supplies'!D292,0)","v":0},{"$f":"SUM(B15:E15)","v":0},{"$f":"IFERROR(F15/$F$24,\"\")","v":""}]
["f. Contractual"]
["Sub-recipient",{"$f":"ROUND('f. Contractual'!C21,0)","v":0},{"$f":"ROUND('f. Contractual'!D21,0)","v":0},{"$f":"ROUND('f. Contractual'!E21,0)","v":0},{"$f":"ROUND('f. Contractual'!F21,0)","v":0},{"$f":"SUM(B17:E17)","v":0},{"$f":"IFERROR(F17/$F$24,\"\")","v":""}]
["FFRDC (Separate Work Authorization or other Sub-Award)",{"$f":"ROUND('f. Contractual'!C52,0)","v":0},{"$f":"ROUND('f. Contractual'!D52,0)","v":0},{"$f":"ROUND('f. Contractual'!E52,0)","v":0},{"$f":"ROUND('f. Contractual'!F52,0)","v":0},0,""]
["Vendor",{"$f":"ROUND('f. Contractual'!C40,0)","v":0},{"$f":"ROUND('f. Contractual'!D40,0)","v":0},{"$f":"ROUND('f. Contractual'!E40,0)","v":0},{"$f":"ROUND('f. Contractual'!F40,0)","v":0},0,""]
["Total Contractual ",{"$f":"SUM(B17:B19)","v":0},{"$f":"SUM(C17:C19)","v":0},{"$f":"SUM(D17:D19)","v":0},{"$f":"SUM(E17:E19)","v":0},0,""]
["g. Construction",{"$f":"ROUND('g. Construction'!B16,0)","v":0},{"$f":"ROUND('g. Construction'!B24,0)","v":0},{"$f":"ROUND('g. Construction'!B32,0)","v":0},{"$f":"ROUND('g. Construction'!B40,0)","v":0},0,""]
["h. Other Direct Costs",{"$f":"ROUND('h. Other'!B43,0)","v":0},{"$f":"ROUND('h. Other'!B64,0)","v":0},{"$f":"ROUND('h. Other'!B85,0)","v":0},{"$f":"ROUND('h. Other'!B106,0)","v":0},0,""]
["i. Indirect Charges",{"$f":"ROUND('i. Indirect Costs'!D9,0)","v":0},{"$f":"ROUND('i. Indirect Costs'!E9,0)","v":0},{"$f":"ROUND('i. Indirect Costs'!F9,0)","v":0},{"$f":"ROUND('i. Indirect Costs'!G9,0)","v":0},0,""]
["Total Project Costs",{"$f":"SUM(B11:B15,B20:B23)","v":0},{"$f":"SUM(C11:C15,C20:C23)","v":0},0,0,{"$f":"SUM(F11:F15,F20:F23)","v":0},{"$f":"IFERROR(SUM(G11:G23)-G20,\"\")","v":""}]
[]
["Additional Explanations/Comments (as necessary):"]

{"sheet":"SF-424A (Rev. 4-92) ","index":1,"n_rows":63,"n_cols":8,"rows_kept":63,"cut":false,"hidden":true,"merged":[[4,0,5,0],[4,1,5,1],[4,2,5,2],[4,3,4,4],[4,5,4,7],[0,0,0,1],[1,0,1,7],[2,0,2,7],[3,0,3,1],[3,2,3,7],[0,2,0,3],[20,1,20,2],[12,0,12,1],[12,2,12,7],[13,0,14,0],[13,1,14,2],[13,3,13,6],[13,7,14,7],[15,1,15,2],[16,1,16,2],[17,1,17,2],[18,1,18,2],[19,1,19,2],[39,1,39,3],[33,0,33,2],[33,3,33,7],[21,1,21,2],[22,1,22,2],[23,1,23,2],[24,1,24,2],[25,1,25,2],[26,0,26,7],[27,1,27,2],[30,0,30,1],[30,2,30,5],[30,6,30,7],[31,0,31,7],[34,1,34,3],[35,1,35,3],[36,1,36,3],[37,1,37,3],[38,1,38,3],[58,0,58,7],[59,0,59,7],[50,1,50,3],[51,1,51,3],[52,1,52,3],[53,0,53,2],[53,3,53,7],[54,2,54,3],[54,5,54,7],[55,0,55,3],[55,4,55,7],[56,2,56,7],[57,0,57,7],[49,1,49,3],[40,0,40,2],[40,3,40,7],[41,0,41,2],[42,1,42,2],[43,1,43,2],[45,0,45,3],[45,4,45,7],[46,0,47,3],[46,4,46,7],[48,1,48,3],[44,1,44,2],[60,2,60,6],[61,0,61,1],[62,2,62,6],[64,0,101,7],[103,0,144,7]]}
["Applicant Name:",null,null,null,"Award Number:"]
["Budget Information - Non Construction Programs"]
["OMB Approval No. 0348-0044"]
["Section A - Budget Summary"]
[null,"Grant Program Function or Activity","Catalog of Federal Domestic Assistance Number","Estimated Unobligated Funds",null,"New or Revised Budget"]
[null,null,null,"Federal ","Non-Federal ","Federal","Non-Federal","Total"]
[null,"(a)","(b)","(c )","(d)","(e)","(f)","(g)"]
["1.",{"$nulls":6},{"$f":"SUM(D8:G8)","v":0}]
["2.",{"$nulls":6},{"$f":"SUM(D9:G9)","v":0}]
["3.",{"$nulls":6},{"$f":"SUM(D10:G10)","v":0}]
["4.",{"$nulls":6},{"$f":"SUM(D11:G11)","v":0}]
["5.","Totals",null,{"$f":"SUM(D8:D11)","v":0},{"$f":"SUM(E8:E11)","v":0},{"$f":"SUM(F8:F11)","v":0},{"$f":"SUM(G8:G11)","v":0},{"$f":"SUM(H8:H11)","v":0}]
["Section B - Budget Categories"]
["6.","Object Class Categories",null,"Grant Program, Function or Activity",null,null,null,"Total (5)"]
[null,null,null,"(1)","(2)","(3)","(4)"]
[null,"a.  Personnel",{"$nulls":5},{"$f":"SUM(D16:G16)","v":0}]
[null,"b.  Fringe Benefits",{"$nulls":5},0]
[null,"c.  Travel",{"$nulls":5},0]
[null,"d.  Equipment",{"$nulls":5},0]
[null,"e.  Supplies",{"$nulls":5},0]
[null,"f.  Contractual",{"$nulls":5},0]
[null,"g.  Construction",{"$nulls":5},0]
[null,"h.  Other",{"$nulls":5},0]
[null,"i.  Total Direct Charges (sum of 6a-6h)",null,{"$f":"SUM(D16:D23)","v":0},{"$f":"SUM(E16:E23)","v":0},{"$f":"SUM(F16:F23)","v":0},{"$f":"SUM(G16:G23)","v":0},0]
[null,"j.  Indirect Charges",{"$nulls":5},0]
[null,"k.  Totals (sum of 6i-6j)",null,{"$f":"SUM(D24:D25)","v":0},{"$f":"SUM(E24:E25)","v":0},{"$f":"SUM(F24:F25)","v":0},{"$f":"SUM(G24:G25)","v":0},{"$f":"SUM(H24:H25)","v":0}]
[]
["7.","Program Income",{"$nulls":5},{"$f":"SUM(D28:G28)","v":0}]
[]
[{"$nulls":7},"SF-424A (Rev. 4-92) "]
["Previous Edition Usable",{"$nulls":5},"Prescribed by OMB Circular A-102"]
["Authorized for Local Reproduction"]
[]
["Section C - Non-Federal Resources"]
[null,"(a) Grant Program",null,null,"(b) Applicant","(c ) State","(d) Other Sources","(e) Totals"]
["8.",{"$nulls":6},{"$f":"SUM(E36:G36)","v":0}]
["9.",{"$nulls":6},{"$f":"SUM(E37:G37)","v":0}]
["10.",{"$nulls":6},{"$f":"SUM(E38:G38)","v":0}]
["11.",{"$nulls":6},{"$f":"SUM(E39:G39)","v":0}]
["12.","Total (sum of lines 8 - 11)",null,null,{"$f":"SUM(E36:E39)","v":0},{"$f":"SUM(F36:F39)","v":0},{"$f":"SUM(G36:G39)","v":0},{"$f":"SUM(H36:H39)","v":0}]
["Section D - Forecasted Cash Needs"]
[null,null,null,"Total for 1st Year","1st Quarter","2nd Quarter","3rd Quarter","4th quarter"]
["13.","Federal",null,{"$f":"SUM(E43:H43)","v":0}]
["14.","Non-Federal",null,{"$f":"SUM(E44:H44)","v":0}]
["15.","Total (sum of lines 13 and 14)",null,{"$f":"SUM(D43:D44)","v":0},{"$f":"SUM(E43:E44)","v":0},{"$f":"SUM(F43:F44)","v":0},{"$f":"SUM(G43:G44)","v":0},{"$f":"SUM(H43:H44)","v":0}]
["Section E - Budget Estimates of Federal Funds Needed for Balance of the Project"]
["(a) Grant Program",null,null,null,"Future Funding Periods (Years)"]
[{"$nulls":4},"(b) First","(c ) Second","(d) Third","(e) Fourth"]
["16."]
["17."]
["18."]
["19."]
["20.","Total (sum of lines 16-19)",null,null,{"$f":"SUM(E49:E52)","v":0},{"$f":"SUM(F49:F52)","v":0},{"$f":"SUM(G49:G52)","v":0},{"$f":"SUM(H49:H52)","v":0}]
["Section F - Other Budget Information"]
["21. Direct Charges",null,null,null,"22. Indirect Charges"]
[]
["23.  Remarks"]
[]
[]
[]
[{"$nulls":7},"SF-424A (Rev. 4-92) "]
["Previous Edition Usable",null,"              ",{"$nulls":4},"Prescribed by OMB Circular A-102"]
[null,null,"Authorized for Local Reproduction"]

{"sheet":"SF-424A","index":2,"n_rows":62,"n_cols":11,"rows_kept":62,"cut":false,"hidden":false,"merged":[[21,6,21,7],[22,6,22,7],[23,6,23,7],[24,6,24,7],[48,7,48,8],[49,7,49,8],[50,7,50,8],[51,7,51,8],[52,7,52,8],[36,7,36,8],[37,7,37,8],[38,7,38,8],[39,7,39,8],[40,7,40,8],[47,4,47,8],[43,10,44,12],[45,10,45,12],[14,8,15,8],[41,4,41,8],[19,1,19,2],[20,1,20,2],[21,1,21,2],[38,1,38,3],[24,1,24,2],[25,1,25,2],[26,1,26,2],[27,0,27,8],[39,1,39,3],[15,6,15,7],[16,6,16,7],[17,6,17,7],[18,6,18,7],[19,6,19,7],[31,6,31,8],[32,0,32,8],[25,6,25,7],[26,6,26,7],[28,6,28,7],[35,7,35,8],[4,0,5,0],[4,1,5,1],[37,1,37,3],[22,1,22,2],[23,1,23,2],[14,0,15,0],[14,1,15,2],[14,3,14,6],[34,0,34,2],[34,3,34,8],[35,1,35,3],[16,1,16,2],[12,1,12,3],[36,1,36,3],[17,1,17,2],[18,1,18,2],[4,6,4,8],[4,4,4,5],[4,2,5,3],[7,2,7,3],[8,2,8,3],[9,2,9,3],[10,2,10,3],[20,6,20,7],[50,1,50,3],[45,1,45,2],[42,0,42,3],[43,1,43,3],[44,1,44,3],[47,0,48,3],[49,1,49,3],[41,0,41,3],[0,0,0,1],[1,0,1,8],[2,0,2,8],[0,2,0,3],[0,5,0,6],[6,2,6,3],[46,0,46,4],[46,5,46,8],[11,2,11,3],[3,0,3,2],[13,0,13,2],[13,3,13,8],[3,3,3,8],[28,1,28,2],[31,0,31,1],[31,2,31,5],[61,2,61,6],[63,0,100,8],[102,0,143,8],[60,0,60,1],[51,1,51,3],[54,0,54,2],[54,3,54,8],[59,2,59,6],[56,0,56,3],[56,4,56,8],[57,2,57,8],[58,0,58,8],[55,5,55,8],[52,1,52,3],[53,1,53,3],[55,2,55,3],[53,7,53,8]]}
["Applicant Name:",null,{"$f":"'Instructions and Summary'!B4","v":0},null,"Award Number:"]
["Budget Information - Non Construction Programs"]
["OMB Approval No. 0348-0044"]
["Section A - Budget Summary"]
[null,"Grant Program Function or Activity","Catalog of Federal Domestic Assistance Number",null,"Estimated Unobligated Funds",null,"New or Revised Budget"]
[{"$nulls":4},"Federal ","Non-Federal ","Federal","Non-Federal","Total"]
[null,"(a)","(b)",null,"(c )","(d)","(e)","(f)","(g)"]
["1.","Phase I (12 Months)",81.135000000000005,null,null,null,{"$f":"ROUND($D$27-H8,0)","v":0},{"$f":"ROUND('Cost Share'!E25,0)","v":0},{"$f":"SUM(D8:H8)","v":0}]
["2.","Phase II-Year 1(12 Months)",81.135000000000005,null,null,null,{"$f":"ROUND($E$27-H9,0)","v":0},{"$f":"ROUND('Cost Share'!F25,0)","v":0},{"$f":"SUM(D9:H9)","v":0}]
["3.","Phase II-Year 2 (12 Months)",81.135000000000005,null,null,null,{"$f":"ROUND($F$27-H10,0)","v":0},{"$f":"ROUND('Cost Share'!G25,0)","v":0},{"$f":"SUM(D10:H10)","v":0}]
["4.","Phase IIS (12 Months)",81.135000000000005,null,null,null,{"$f":"ROUND($G$27-H11,0)","v":0},{"$f":"ROUND('Cost Share'!H25,0)","v":0},{"$f":"SUM(D11:H11)","v":0}]
[]
["6.","Totals",null,null,{"$f":"SUM(E8:E11)","v":0},{"$f":"SUM(F8:F11)","v":0},{"$f":"SUM(G8:G11)","v":0},{"$f":"SUM(H8:H11)","v":0},{"$f":"SUM(I8:I11)","v":0}]
["Section B - Budget Categories"]
["6.","Object Class Categories",null,"Grant Program, Function or Activity",{"$nulls":4},"Total (5)"]
[null,null,null,"Phase I (12 Months)","Phase II-Year 1(12 Months)","Phase II-Year 2 (12 Months)","Phase IIS (12 Months)"]
[null,"a.  Personnel",null,{"$f":"'Instructions and Summary'!B11","v":0},{"$f":"'Instructions and Summary'!C11","v":0},{"$f":"'Instructions and Summary'!D11","v":0},{"$f":"'Instructions and Summary'!E11","v":0},null,{"$f":"SUM(D17:H17)","v":0}]
[null,"b.  Fringe Benefits",null,{"$f":"'Instructions and Summary'!B12","v":0},{"$f":"'Instructions and Summary'!C12","v":0},{"$f":"'Instructions and Summary'!D12","v":0},{"$f":"'Instructions and Summary'!E12","v":0},null,{"$f":"SUM(D18:H18)","v":0}]
[null,"c.  Travel",null,{"$f":"'Instructions and Summary'!B13","v":0},{"$f":"'Instructions and Summary'!C13","v":0},{"$f":"'Instructions and Summary'!D13","v":0},{"$f":"'Instructions and Summary'!E13","v":0},null,0]
[null,"d.  Equipment",null,{"$f":"'Instructions and Summary'!B14","v":0},{"$f":"'Instructions and Summary'!C14","v":0},{"$f":"'Instructions and Summary'!D14","v":0},{"$f":"'Instructions and Summary'!E14","v":0},null,0]
[null,"e.  Supplies",null,{"$f":"'Instructions and Summary'!B15","v":0},{"$f":"'Instructions and Summary'!C15","v":0},{"$f":"'Instructions and Summary'!D15","v":0},{"$f":"'Instructions and Summary'!E15","v":0},null,0]
[null,"f.  Contractual",null,{"$f":"'Instructions and Summary'!B20","v":0},{"$f":"'Instructions and Summary'!C20","v":0},{"$f":"'Instructions and Summary'!D20","v":0},{"$f":"'Instructions and Summary'!E20","v":0},null,0]
[null,"g.  Construction",null,{"$f":"'Instructions and Summary'!B21","v":0},{"$f":"'Instructions and Summary'!C21","v":0},{"$f":"'Instructions and Summary'!D21","v":0},{"$f":"'Instructions and Summary'!E21","v":0},null,0]
[null,"h.  Other",null,{"$f":"'Instructions and Summary'!B22","v":0},{"$f":"'Instructions and Summary'!C22","v":0},{"$f":"'Instructions and Summary'!D22","v":0},{"$f":"'Instructions and Summary'!E22","v":0},null,0]
[null,"i.  Total Direct Charges (sum of 6a-6h)",null,{"$f":"SUM(D17:D24)","v":0},{"$f":"SUM(E17:E24)","v":0},{"$f":"SUM(F17:F24)","v":0},{"$f":"SUM(G17:G24)","v":0},null,{"$f":"SUM(D25:H25)","v":0}]
[null,"j.  Indirect Charges",null,{"$f":"'Instructions and Summary'!B23","v":0},{"$f":"'Instructions and Summary'!C23","v":0},{"$f":"'Instructions and Summary'!D23","v":0},{"$f":"'Instructions and Summary'!E23","v":0},null,{"$f":"SUM(D26:H26)","v":0}]
[null,"k.  Totals (sum of 6i-6j)",null,{"$f":"SUM(D25:D26)","v":0},{"$f":"SUM(E25:E26)","v":0},{"$f":"SUM(F25:F26)","v":0},{"$f":"SUM(G25:G26)","v":0},null,{"$f":"SUM(I25:I26)","v":0}]
[]
["7.","Program Income",{"$nulls":6},{"$f":"SUM(D29:G29)","v":0}]
[]
[{"$nulls":8},"SF-424A (Rev. 4-92) "]
["Previous Edition Usable",{"$nulls":5},"Prescribed by OMB Circular A-102"]
["Authorized for Local Reproduction"]
[]
["Section C - Non-Federal Resources"]
[null,"(a) Grant Program",null,null,"(b) Applicant","(c ) State","(d) Other Sources","(e) Totals"]
["8.",null,null,null,{"$f":"ROUND('Cost Share'!L13,0)","v":0},{"$f":"ROUND('Cost Share'!L14,0)","v":0},{"$f":"ROUND('Cost Share'!L15,0)","v":0},{"$f":"SUM(E37:G37)","v":0}]
["9.",null,null,null,{"$f":"ROUND('Cost Share'!M13,0)","v":0},{"$f":"ROUND('Cost Share'!M14,0)","v":0},{"$f":"ROUND('Cost Share'!M15,0)","v":0},{"$f":"SUM(E38:G38)","v":0}]
["10.",null,null,null,{"$f":"ROUND('Cost Share'!N13,0)","v":0},{"$f":"ROUND('Cost Share'!N14,0)","v":0},{"$f":"ROUND('Cost Share'!N15,0)","v":0},{"$f":"SUM(E39:G39)","v":0}]
["11.",null,null,null,{"$f":"ROUND('Cost Share'!O13,0)","v":0},{"$f":"ROUND('Cost Share'!O14,0)","v":0},{"$f":"ROUND('Cost Share'!O15,0)","v":0},{"$f":"SUM(E40:G40)","v":0}]
["12.","Total (sum of lines 8 - 13)",null,null,{"$f":"SUM(E37:E40)","v":0},{"$f":"SUM(F37:F40)","v":0},{"$f":"SUM(G37:G40)","v":0},{"$f":"SUM(I37:I40)","v":0}]
["Section D - Forecasted Cash Needs"]
[{"$nulls":4},"Total for 1st Year","1st Quarter","2nd Quarter","3rd Quarter","4th quarter"]
["13.","Federal",null,null,{"$f":"F8","v":0},{"$nulls":5},"Please populate with forecasted cash flow for the first year. This total should match total budget for the first year."]
["14.","Non-Federal",null,null,{"$f":"G8","v":0}]
["15.","Total (sum of lines 13 and 14)",null,null,{"$f":"SUM(E44:E45)","v":0},{"$f":"SUM(F44:F45)","v":0},{"$f":"SUM(G44:G45)","v":0},{"$f":"SUM(H44:H45)","v":0},{"$f":"SUM(I44:I45)","v":0},null,{"$f":"IF(SUM(F46:I46)=E46,\"Correct\",\"Review\")","v":"Correct"}]
["Section E - Budget Estimates of Federal Funds Needed for Balance of the Project"]
["(a) Grant Program",null,null,null,"Future Funding Periods (Years)"]
[{"$nulls":4},"(b) First","(c) Second","(d) Third","(e) Fourth"]
["16.","ARPA-E",null,null,{"$f":"F8","v":0},{"$f":"F9","v":0},{"$f":"F10","v":0},{"$f":"F11","v":0}]
["17."]
["18."]
["19."]
["20.","Total (sum of lines 16-19)",null,null,{"$f":"SUM(E50:E53)","v":0},{"$f":"SUM(F50:F53)","v":0},{"$f":"SUM(G50:G53)","v":0},{"$f":"SUM(H50:H53)","v":0}]
["Section F - Other Budget Information"]
["21. Direct Charges",null,{"$f":"'Instructions and Summary'!F24-'Instructions and Summary'!F23","v":0},null,"22. Indirect Charges",{"$f":"'Instructions and Summary'!F23","v":0}]
[]
["23.  Remarks"]
[]
[{"$nulls":8},"SF-424A (Rev. 4-92) "]
["Previous Edition Usable",null,"              ",{"$nulls":5},"Prescribed by OMB Circular A-102"]
[null,null,"Authorized for Local Reproduction"]

{"sheet":"a. Personnel","index":3,"n_rows":184,"n_cols":17,"rows_kept":184,"cut":false,"hidden":false,"merged":[[183,0,183,3],[184,0,184,16],[0,0,0,1],[0,5,0,8],[0,3,0,4],[73,0,73,1],[95,0,95,1],[118,0,118,1],[140,0,140,1],[161,0,161,1],[181,0,181,1],[5,15,6,15],[5,16,6,16],[8,0,10,0],[11,0,11,1],[31,0,31,1],[52,0,52,1],[0,14,0,16],[1,0,1,16],[2,0,3,16],[5,0,6,0],[5,1,6,1],[5,2,5,4],[5,5,5,7],[5,8,5,10],[5,14,6,14],[0,11,0,13],[5,11,5,13]]}
["Budget Justification for SF 424A Budget",null,null,"Award Recipient:",null,{"$f":"'Instructions and Summary'!B4","v":0},{"$nulls":5},{"$f":"'Instructions and Summary'!G4","v":0},null,null,{"$f":"'Instructions and Summary'!H1","v":"06/21/18   V 6.18"}]
["a. Personnel"]
["PLEASE READ!!!\n\nList costs solely for employees of the entity completing this form (award recipient or sub-recipient).  All other personnel costs (of subrecipients or other contractual efforts of the entity preparing this) must be included under f., Contractual.  This includes all consultants and FFRDCs.\n\nIdentify positions to be supported.  Key personnel should be identified by title.  All other personnel should be identified either by title or a group category.  State the amounts of time (e.g., hours or % of time) to be expended, the composite base pay rate, total direct personnel compensation and identify the rate basis (e.g., actual salary, labor distribution report, technical estimate, state civil service rates, etc.)."]
[]
[]
["Task # and Title","Position Title","Phase I (12 Months)",null,null,"Phase II-Year 1 (12 Months)",null,null,"Phase II-Year 2 (12 Months)",null,null,"Phase IIS (12 Months)",null,null," Total Hours"," Total Dollars","Rate Basis"]
[null,null,"Time \n(Hours)","Pay Rate\n($/Hr)","Total Budget Phase I","Time \n(Hours)","Pay Rate\n($/Hr)","Total Phase II - Year 1","Time \n(Hours)","Pay Rate\n($/Hr)","Total Phase II - Year 2","Time \n(Hours)","Pay Rate\n($/Hr)","Total Budget Phase IIS (12 Months)"]
["1.  Generation 2A Receiver Design",null,{"$f":"SUM(C9:C11)","v":7960},null,{"$f":"SUM(E9:E11)","v":372400},{"$f":"SUM(F9:F11)","v":600},null,{"$f":"SUM(H9:H11)","v":26000},{"$f":"SUM(I9:I11)","v":800},null,{"$f":"SUM(K9:K11)","v":34000},{"$f":"SUM(L9:L11)","v":300},null,{"$f":"SUM(N9:N11)","v":13000},{"$f":"C8+F8+I8+L8","v":9660},{"$f":"E8+H8+K8+N8","v":445400},"Actual Salary"]
["EXAMPLE ONLY!!!","Sr. Engineer    ",2000,85,{"$f":"C9*D9","v":170000},200,50,{"$f":"F9*G9","v":10000},200,50,{"$f":"I9*J9","v":10000},100,50,{"$f":"L9*M9","v":5000},{"$f":"C9+F9+I9+L9","v":2500},{"$f":"E9+H9+K9+N9","v":195000},"Actual Salary"]
[null,"Electrical engineers (2)",4160,40,{"$f":"C10*D10","v":166400},400,40,{"$f":"F10*G10","v":16000},600,40,{"$f":"I10*J10","v":24000},200,40,{"$f":"L10*M10","v":8000},5360,214400,"Actual Salary"]
[null,"Technician         ",1800,20,{"$f":"C11*D11","v":36000},0,0,{"$f":"F11*G11","v":0},0,0,{"$f":"I11*J11","v":0},0,0,{"$f":"L11*M11","v":0},1800,36000,"Actual Salary"]
["1.   (Task 1 Title)",null,{"$f":"SUM(C13:C31)","v":0},null,{"$f":"SUM(E13:E31)","v":0},{"$f":"SUM(F13:F31)","v":0},null,{"$f":"SUM(H13:H31)","v":0},{"$f":"SUM(I13:I31)","v":0},null,{"$f":"SUM(K13:K31)","v":0},{"$f":"SUM(L13:L31)","v":0},null,{"$f":"SUM(N13:N31)","v":0},{"$f":"C12+F12+I12+L12","v":0},{"$f":"E12+H12+K12+N12","v":0}]
[{"$nulls":4},{"$f":"C13*D13","v":0},null,null,{"$f":"F13*G13","v":0},null,null,{"$f":"I13*J13","v":0},null,null,{"$f":"L13*M13","v":0},{"$f":"C13+F13+I13+L13","v":0},{"$f":"E13+H13+K13+N13","v":0}]
[{"$nulls":4},{"$f":"C14*D14","v":0},null,null,{"$f":"F14*G14","v":0},null,null,{"$f":"I14*J14","v":0},null,null,{"$f":"L14*M14","v":0},0,0]
[{"$nulls":4},0,null,null,0,null,null,0,null,null,0,0,0]
[{"$nulls":4},0,null,null,0,null,null,0,null,null,0,0,0]
[{"$nulls":4},0,null,null,0,null,null,0,null,null,0,0,0]
[{"$nulls":4},0,null,null,0,null,null,0,null,null,0,0,0]
[{"$nulls":4},0,null,null,0,null,null,0,null,null,0,0,0]
[{"$nulls":4},0,null,null,0,null,null,0,null,null,0,0,0]
[{"$nulls":4},0,null,null,0,null,null,0,null,null,0,0,0]
[{"$nulls":4},0,null,null,0,null,null,0,null,null,0,0,0]
[{"$nulls":4},0,null,null,0,null,null,0,null,null,0,0,0]
[{"$nulls":4},0,null,null,0,null,null,0,null,null,0,0,0]
[{"$nulls":4},0,null,null,0,null,null,0,null,null,0,0,0]
[{"$nulls":4},0,null,null,0,null,null,0,null,null,0,0,0]
[{"$nulls":4},0,null,null,0,null,null,0,null,null,0,0,0]
[{"$nulls":4},0,null,null,0,null,null,0,null,null,0,0,0]
[{"$nulls":4},0,null,null,0,null,null,0,null,null,0,0,0]
[{"$nulls":4},0,null,null,0,null,null,0,null,null,0,{"$f":"C30+F30+I30+L30","v":0},0]
[{"$nulls":4},0,null,null,0,null,null,0,null,null,0,{"$f":"C31+F31+I31+L31","v":0},{"$f":"E31+H31+K31+N31","v":0}]
["2.   (Task 2 Title)",null,{"$f":"SUM(C33:C52)","v":0},null,{"$f":"SUM(E33:E52)","v":0},{"$f":"SUM(F33:F52)","v":0},null,{"$f":"SUM(H33:H52)","v":0},{"$f":"SUM(I33:I52)","v":0},null,{"$f":"SUM(K33:K52)","v":0},{"$f":"SUM(L33:L52)","v":0},null,{"$f":"SUM(N33:N52)","v":0},{"$f":"C32+F32+I32+L32","v":0},{"$f":"E32+H32+K32+N32","v":0}]
[{"$nulls":4},0,null,null,0,null,null,0,null,null,{"$f":"L33*M33","v":0},{"$f":"C33+F33+I33+L33","v":0},{"$f":"E33+H33+K33+N33","v":0}]
[{"$nulls":4},0,null,null,0,null,null,0,null,null,0,0,0]
[{"$nulls":4},0,null,null,0,null,null,0,null,null,0,0,0]
[{"$nulls":4},0,null,null,0,null,null,0,null,null,0,0,0]
[{"$nulls":4},0,null,null,0,null,null,0,null,null,0,0,0]
[{"$nulls":4},0,null,null,0,null,null,0,null,null,0,0,0]
[{"$nulls":4},0,null,null,0,null,null,0,null,null,0,0,0]
[{"$nulls":4},0,null,null,0,null,null,0,null,null,0,0,0]
[{"$nulls":4},0,null,null,0,null,null,0,null,null,0,0,0]
[{"$nulls":4},0,null,null,0,null,null,0,null,null,0,0,0]
[{"$nulls":4},0,null,null,0,null,null,0,null,null,0,0,0]
[{"$nulls":4},0,null,null,0,null,null,0,null,null,0,0,0]
[{"$nulls":4},0,null,null,0,null,null,0,null,null,0,0,0]
[{"$nulls":4},0,null,null,0,null,null,0,null,null,0,0,0]
[{"$nulls":4},0,null,null,0,null,null,0,null,null,0,0,0]
[{"$nulls":4},0,null,null,0,null,null,0,null,null,0,0,0]
[{"$nulls":4},0,null,null,0,null,null,0,null,null,0,0,0]
[{"$nulls":4},0,null,null,0,null,null,0,null,null,0,0,0]
[{"$nulls":4},0,null,null,0,null,null,0,null,null,0,0,0]
[{"$nulls":4},0,null,null,0,null,null,0,null,null,0,{"$f":"C52+F52+I52+L52","v":0},{"$f":"E52+H52+K52+N52","v":0}]
["3.   (Task 3 Title)",null,{"$f":"SUM(C54:C73)","v":0},null,{"$f":"SUM(E54:E73)","v":0},{"$f":"SUM(F54:F73)","v":0},null,{"$f":"SUM(H54:H73)","v":0},{"$f":"SUM(I54:I73)","v":0},null,{"$f":"SUM(K54:K73)","v":0},{"$f":"SUM(L54:L73)","v":0},null,{"$f":"SUM(N54:N73)","v":0},{"$f":"C53+F53+I53+L53","v":0},{"$f":"E53+H53+K53+N53","v":0}]
[{"$nulls":4},0,null,null,0,null,null,0,null,null,{"$f":"L54*M54","v":0},{"$f":"C54+F54+I54+L54","v":0},{"$f":"E54+H54+K54+N54","v":0}]
[{"$nulls":4},0,null,null,0,null,null,0,null,null,0,0,0]
[{"$nulls":4},0,null,null,0,null,null,0,null,null,0,0,0]
[{"$nulls":4},0,null,null,0,null,null,0,null,null,0,0,0]
[{"$nulls":4},0,null,null,0,null,null,0,null,null,0,0,0]
[{"$nulls":4},0,null,null,0,null,null,0,null,null,0,0,0]
[{"$nulls":4},0,null,null,0,null,null,0,null,null,0,0,0]
[{"$nulls":4},0,null,null,0,null,null,0,null,null,0,0,0]
[{"$nulls":4},0,null,null,0,null,null,0,null,null,0,0,0]
[{"$nulls":4},0,null,null,0,null,null,0,null,null,0,0,0]
[{"$nulls":4},0,null,null,0,null,null,0,null,null,0,0,0]
[{"$nulls":4},0,null,null,0,null,null,0,null,null,0,0,0]
[{"$nulls":4},0,null,null,0,null,null,0,null,null,0,0,0]
[{"$nulls":4},0,null,null,0,null,null,0,null,null,0,0,0]
[{"$nulls":4},0,null,null,0,null,null,0,null,null,0,0,0]
[{"$nulls":4},0,null,null,0,null,null,0,null,null,0,0,0]
[{"$nulls":4},0,null,null,0,null,null,0,null,null,0,0,0]
[{"$nulls":4},0,null,null,0,null,null,0,null,null,0,0,0]
[{"$nulls":4},0,null,null,0,null,null,0,null,null,0,0,0]
[{"$nulls":4},0,null,null,0,null,null,0,null,null,0,{"$f":"C73+F73+I73+L73","v":0},{"$f":"E73+H73+K73+N73","v":0}]
["4.   (Task 4 Title)",null,{"$f":"SUM(C75:C95)","v":0},null,{"$f":"SUM(E75:E95)","v":0},{"$f":"SUM(F75:F95)","v":0},null,{"$f":"SUM(H75:H95)","v":0},{"$f":"SUM(I75:I95)","v":0},null,{"$f":"SUM(K75:K95)","v":0},{"$f":"SUM(L75:L95)","v":0},null,{"$f":"SUM(N75:N95)","v":0},{"$f":"C74+F74+I74+L74","v":0},{"$f":"E74+H74+K74+N74","v":0}]
[{"$nulls":4},{"$f":"C75*D75","v":0},null,null,{"$f":"F75*G75","v":0},null,null,{"$f":"I75*J75","v":0},null,null,{"$f":"L75*M75","v":0},{"$f":"C75+F75+I75+L75","v":0},{"$f":"E75+H75+K75+N75","v":0}]
[{"$nulls":4},{"$f":"C76*D76","v":0},null,null,{"$f":"F76*G76","v":0},null,null,{"$f":"I76*J76","v":0},null,null,{"$f":"L76*M76","v":0},0,0]
[{"$nulls":4},0,null,null,0,null,null,0,null,null,0,0,0]
[{"$nulls":4},0,null,null,0,null,null,0,null,null,0,0,0]
[{"$nulls":4},0,null,null,0,null,null,0,null,null,0,0,0]
[{"$nulls":4},0,null,null,0,null,null,0,null,null,0,0,0]
[{"$nulls":4},0,null,null,0,null,null,0,null,null,0,0,0]
[{"$nulls":4},0,null,null,0,null,null,0,null,null,0,0,0]
[{"$nulls":4},0,null,null,0,null,null,0,null,null,0,0,0]
[{"$nulls":4},0,null,null,0,null,null,0,null,null,0,0,0]
[{"$nulls":4},0,null,null,0,null,null,0,null,null,0,0,0]
[{"$nulls":4},0,null,null,0,null,null,0,null,null,0,0,0]
[{"$nulls":4},0,null,null,0,null,null,0,null,null,0,0,0]
[{"$nulls":4},0,null,null,0,null,null,0,null,null,0,0,0]
[{"$nulls":4},0,null,null,0,null,null,0,null,null,0,0,0]
[{"$nulls":4},0,null,null,0,null,null,0,null,null,0,0,0]
[{"$nulls":4},0,null,null,0,null,null,0,null,null,0,0,0]
[{"$nulls":4},0,null,null,0,null,null,0,null,null,0,0,0]
[{"$nulls":4},0,null,null,0,null,null,0,null,null,0,0,0]
[{"$nulls":4},0,null,null,0,null,null,0,null,null,0,0,0]
[{"$nulls":4},0,null,null,0,null,null,0,null,null,0,{"$f":"C95+F95+I95+L95","v":0},{"$f":"E95+H95+K95+N95","v":0}]
["5.   (Task 5 Title)",null,{"$f":"SUM(C97:C118)","v":0},null,{"$f":"SUM(E97:E118)","v":0},{"$f":"SUM(F97:F118)","v":0},null,{"$f":"SUM(H97:H118)","v":0},{"$f":"SUM(I97:I118)","v":0},null,{"$f":"SUM(K97:K118)","v":0},{"$f":"SUM(L97:L118)","v":0},null,{"$f":"SUM(N97:N118)","v":0},{"$f":"C96+F96+I96+L96","v":0},{"$f":"E96+H96+K96+N96","v":0}]
[{"$nulls":4},{"$f":"C97*D97","v":0},null,null,{"$f":"F97*G97","v":0},null,null,{"$f":"I97*J97","v":0},null,null,{"$f":"L97*M97","v":0},{"$f":"C97+F97+I97+L97","v":0},{"$f":"E97+H97+K97+N97","v":0}]
[{"$nulls":4},{"$f":"C98*D98","v":0},null,null,{"$f":"F98*G98","v":0},null,null,{"$f":"I98*J98","v":0},null,null,{"$f":"L98*M98","v":0},0,0]
[{"$nulls":4},0,null,null,0,null,null,0,null,null,0,0,0]
[{"$nulls":4},0,null,null,0,null,null,0,null,null,0,0,0]
[{"$nulls":4},0,null,null,0,null,null,0,null,null,0,0,0]
[{"$nulls":4},0,null,null,0,null,null,0,null,null,0,0,0]
[{"$nulls":4},0,null,null,0,null,null,0,null,null,0,0,0]
[{"$nulls":4},0,null,null,0,null,null,0,null,null,0,0,0]
[{"$nulls":4},0,null,null,0,null,null,0,null,null,0,0,0]
[{"$nulls":4},0,null,null,0,null,null,0,null,null,0,0,0]
[{"$nulls":4},0,null,null,0,null,null,0,null,null,0,0,0]
[{"$nulls":4},0,null,null,0,null,null,0,null,null,0,0,0]
[{"$nulls":4},0,null,null,0,null,null,0,null,null,0,0,0]
[{"$nulls":4},0,null,null,0,null,null,0,null,null,0,0,0]
[{"$nulls":4},0,null,null,0,null,null,0,null,null,0,0,0]
[{"$nulls":4},0,null,null,0,null,null,0,null,null,0,0,0]
[{"$nulls":4},0,null,null,0,null,null,0,null,null,0,0,0]
[{"$nulls":4},0,null,null,0,null,null,0,null,null,0,0,0]
[{"$nulls":4},0,null,null,0,null,null,0,null,null,0,0,0]
[{"$nulls":4},0,null,null,0,null,null,0,null,null,0,0,0]
[{"$nulls":4},0,null,null,0,null,null,0,null,null,0,0,0]
[{"$nulls":4},0,null,null,0,null,null,0,null,null,0,{"$f":"C118+F118+I118+L118","v":0},{"$f":"E118+H118+K118+N118","v":0}]
["6.   (Task 6 Title)",null,{"$f":"SUM(C120:C140)","v":0},null,{"$f":"SUM(E120:E140)","v":0},{"$f":"SUM(F120:F140)","v":0},null,{"$f":"SUM(H120:H140)","v":0},{"$f":"SUM(I120:I140)","v":0},null,{"$f":"SUM(K120:K140)","v":0},{"$f":"SUM(L120:L140)","v":0},null,{"$f":"SUM(N120:N140)","v":0},{"$f":"C119+F119+I119+L119","v":0},{"$f":"E119+H119+K119+N119","v":0}]
[{"$nulls":4},{"$f":"C120*D120","v":0},null,null,{"$f":"F120*G120","v":0},null,null,{"$f":"I120*J120","v":0},null,null,{"$f":"L120*M120","v":0},{"$f":"C120+F120+I120+L120","v":0},{"$f":"E120+H120+K120+N120","v":0}]
[{"$nulls":4},{"$f":"C121*D121","v":0},null,null,{"$f":"F121*G121","v":0},null,null,{"$f":"I121*J121","v":0},null,null,{"$f":"L121*M121","v":0},0,0]
[{"$nulls":4},0,null,null,0,null,null,0,null,null,0,0,0]
[{"$nulls":4},0,null,null,0,null,null,0,null,null,0,0,0]
[{"$nulls":4},0,null,null,0,null,null,0,null,null,0,0,0]
[{"$nulls":4},0,null,null,0,null,null,0,null,null,0,0,0]
[{"$nulls":4},0,null,null,0,null,null,0,null,null,0,0,0]
[{"$nulls":4},0,null,null,0,null,null,0,null,null,0,0,0]
[{"$nulls":4},0,null,null,0,null,null,0,null,null,0,0,0]
[{"$nulls":4},0,null,null,0,null,null,0,null,null,0,0,0]
[{"$nulls":4},0,null,null,0,null,null,0,null,null,0,0,0]
[{"$nulls":4},0,null,null,0,null,null,0,null,null,0,0,0]
[{"$nulls":4},0,null,null,0,null,null,0,null,null,0,0,0]
[{"$nulls":4},0,null,null,0,null,null,0,null,null,0,0,0]
[{"$nulls":4},0,null,null,0,null,null,0,null,null,0,0,0]
[{"$nulls":4},0,null,null,0,null,null,0,null,null,0,0,0]
[{"$nulls":4},0,null,null,0,null,null,0,null,null,0,0,0]
[{"$nulls":4},0,null,null,0,null,null,0,null,null,0,0,0]
[{"$nulls":4},0,null,null,0,null,null,0,null,null,0,0,0]
[{"$nulls":4},0,null,null,0,null,null,0,null,null,0,0,0]
[{"$nulls":4},0,null,null,0,null,null,0,null,null,0,{"$f":"C140+F140+I140+L140","v":0},{"$f":"E140+H140+K140+N140","v":0}]
["7.   (Task 7 Title)",null,{"$f":"SUM(C142:C161)","v":0},null,{"$f":"SUM(E142:E161)","v":0},{"$f":"SUM(F142:F161)","v":0},null,{"$f":"SUM(H142:H161)","v":0},{"$f":"SUM(I142:I161)","v":0},null,{"$f":"SUM(K142:K161)","v":0},{"$f":"SUM(L142:L161)","v":0},null,{"$f":"SUM(N142:N161)","v":0},{"$f":"C141+F141+I141+L141","v":0},{"$f":"E141+H141+K141+N141","v":0}]
[{"$nulls":4},{"$f":"C142*D142","v":0},null,null,{"$f":"F142*G142","v":0},null,null,{"$f":"I142*J142","v":0},null,null,{"$f":"L142*M142","v":0},{"$f":"C142+F142+I142+L142","v":0},{"$f":"E142+H142+K142+N142+#REF!","v":{"$error":"#REF!"}}]
[{"$nulls":4},{"$f":"C143*D143","v":0},null,null,{"$f":"F143*G143","v":0},null,null,{"$f":"I143*J143","v":0},null,null,{"$f":"L143*M143","v":0},0,{"$f":"E143+H143+K143+N143+#REF!","v":{"$error":"#REF!"}}]
[{"$nulls":4},0,null,null,0,null,null,0,null,null,0,0,{"$f":"E144+H144+K144+N144+#REF!","v":{"$error":"#REF!"}}]
[{"$nulls":4},0,null,null,0,null,null,0,null,null,0,0,{"$f":"E145+H145+K145+N145+#REF!","v":{"$error":"#REF!"}}]
[{"$nulls":4},0,null,null,0,null,null,0,null,null,0,0,{"$f":"E146+H146+K146+N146+#REF!","v":{"$error":"#REF!"}}]
[{"$nulls":4},0,null,null,0,null,null,0,null,null,0,0,{"$f":"E147+H147+K147+N147+#REF!","v":{"$error":"#REF!"}}]
[{"$nulls":4},0,null,null,0,null,null,0,null,null,0,0,{"$f":"E148+H148+K148+N148+#REF!","v":{"$error":"#REF!"}}]
[{"$nulls":4},0,null,null,0,null,null,0,null,null,0,0,{"$f":"E149+H149+K149+N149+#REF!","v":{"$error":"#REF!"}}]
[{"$nulls":4},0,null,null,0,null,null,0,null,null,0,0,{"$f":"E150+H150+K150+N150+#REF!","v":{"$error":"#REF!"}}]
[{"$nulls":4},0,null,null,0,null,null,0,null,null,0,0,{"$f":"E151+H151+K151+N151+#REF!","v":{"$error":"#REF!"}}]
[{"$nulls":4},0,null,null,0,null,null,0,null,null,0,0,{"$f":"E152+H152+K152+N152+#REF!","v":{"$error":"#REF!"}}]
[{"$nulls":4},0,null,null,0,null,null,0,null,null,0,0,{"$f":"E153+H153+K153+N153+#REF!","v":{"$error":"#REF!"}}]
[{"$nulls":4},0,null,null,0,null,null,0,null,null,0,0,{"$f":"E154+H154+K154+N154+#REF!","v":{"$error":"#REF!"}}]
[{"$nulls":4},0,null,null,0,null,null,0,null,null,0,0,{"$f":"E155+H155+K155+N155+#REF!","v":{"$error":"#REF!"}}]
[{"$nulls":4},0,null,null,0,null,null,0,null,null,0,0,{"$f":"E156+H156+K156+N156+#REF!","v":{"$error":"#REF!"}}]
[{"$nulls":4},0,null,null,0,null,null,0,null,null,0,0,{"$f":"E157+H157+K157+N157+#REF!","v":{"$error":"#REF!"}}]
[{"$nulls":4},0,null,null,0,null,null,0,null,null,0,0,{"$f":"E158+H158+K158+N158+#REF!","v":{"$error":"#REF!"}}]
[{"$nulls":4},0,null,null,0,null,null,0,null,null,0,0,{"$f":"E159+H159+K159+N159+#REF!","v":{"$error":"#REF!"}}]
[{"$nulls":4},0,null,null,0,null,null,0,null,null,0,0,{"$f":"E160+H160+K160+N160+#REF!","v":{"$error":"#REF!"}}]
[{"$nulls":4},0,null,null,0,null,null,0,null,null,0,{"$f":"C161+F161+I161+L161","v":0},{"$f":"E161+H161+K161+N161+#REF!","v":{"$error":"#REF!"}}]
["8.   (Task 8 Title)",null,{"$f":"SUM(C163:C181)","v":0},null,{"$f":"SUM(E163:E181)","v":0},{"$f":"SUM(F163:F181)","v":0},null,{"$f":"SUM(H163:H181)","v":0},{"$f":"SUM(I163:I181)","v":0},null,{"$f":"SUM(K163:K181)","v":0},{"$f":"SUM(L163:L181)","v":0},null,{"$f":"SUM(N163:N181)","v":0},{"$f":"C162+F162+I162+L162","v":0},{"$f":"E162+H162+K162+N162+#REF!","v":{"$error":"#REF!"}}]
[{"$nulls":4},{"$f":"C163*D163","v":0},null,null,{"$f":"F163*G163","v":0},null,null,{"$f":"I163*J163","v":0},null,null,{"$f":"L163*M163","v":0},{"$f":"C163+F163+I163+L163","v":0},{"$f":"E163+H163+K163+N163+#REF!","v":{"$error":"#REF!"}}]
[{"$nulls":4},{"$f":"C164*D164","v":0},null,null,{"$f":"F164*G164","v":0},null,null,{"$f":"I164*J164","v":0},null,null,{"$f":"L164*M164","v":0},0,{"$f":"E164+H164+K164+N164+#REF!","v":{"$error":"#REF!"}}]
[{"$nulls":4},0,null,null,0,null,null,0,null,null,0,0,{"$f":"E165+H165+K165+N165+#REF!","v":{"$error":"#REF!"}}]
[{"$nulls":4},0,null,null,0,null,null,0,null,null,0,0,{"$f":"E166+H166+K166+N166+#REF!","v":{"$error":"#REF!"}}]
[{"$nulls":4},0,null,null,0,null,null,0,null,null,0,0,{"$f":"E167+H167+K167+N167+#REF!","v":{"$error":"#REF!"}}]
[{"$nulls":4},0,null,null,0,null,null,0,null,null,0,0,{"$f":"E168+H168+K168+N168+#REF!","v":{"$error":"#REF!"}}]
[{"$nulls":4},0,null,null,0,null,null,0,null,null,0,0,{"$f":"E169+H169+K169+N169+#REF!","v":{"$error":"#REF!"}}]
[{"$nulls":4},0,null,null,0,null,null,0,null,null,0,0,{"$f":"E170+H170+K170+N170+#REF!","v":{"$error":"#REF!"}}]
[{"$nulls":4},0,null,null,0,null,null,0,null,null,0,0,{"$f":"E171+H171+K171+N171+#REF!","v":{"$error":"#REF!"}}]
[{"$nulls":4},0,null,null,0,null,null,0,null,null,0,0,{"$f":"E172+H172+K172+N172+#REF!","v":{"$error":"#REF!"}}]
[{"$nulls":4},0,null,null,0,null,null,0,null,null,0,0,{"$f":"E173+H173+K173+N173+#REF!","v":{"$error":"#REF!"}}]
[{"$nulls":4},0,null,null,0,null,null,0,null,null,0,0,{"$f":"E174+H174+K174+N174+#REF!","v":{"$error":"#REF!"}}]
[{"$nulls":4},0,null,null,0,null,null,0,null,null,0,0,{"$f":"E175+H175+K175+N175+#REF!","v":{"$error":"#REF!"}}]
[{"$nulls":4},0,null,null,0,null,null,0,null,null,0,0,{"$f":"E176+H176+K176+N176+#REF!","v":{"$error":"#REF!"}}]
[{"$nulls":4},0,null,null,0,null,null,0,null,null,0,0,{"$f":"E177+H177+K177+N177+#REF!","v":{"$error":"#REF!"}}]
[{"$nulls":4},0,null,null,0,null,null,0,null,null,0,0,{"$f":"E178+H178+K178+N178+#REF!","v":{"$error":"#REF!"}}]
[{"$nulls":4},0,null,null,0,null,null,0,null,null,0,0,{"$f":"E179+H179+K179+N179+#REF!","v":{"$error":"#REF!"}}]
[{"$nulls":4},0,null,null,0,null,null,0,null,null,0,0,{"$f":"E180+H180+K180+N180","v":0}]
[{"$nulls":4},0,null,null,0,null,null,0,null,null,0,{"$f":"C181+F181+I181+L181","v":0},{"$f":"E181+H181+K181+N181","v":0}]
["Total Personnel Costs",null,{"$f":"C12+C32+C53+C74+C96+C119+C141+C162","v":0},null,{"$f":"E12+E32+E53+E74+E96+E119+E141+E162","v":0},{"$f":"F12+F32+F53+F74+F96+F119+F141+F162","v":0},null,{"$f":"H12+H32+H53+H74+H96+H119+H141+H162","v":0},{"$f":"I12+I32+I53+I74+I96+I119+I141+I162","v":0},null,{"$f":"K12+K32+K53+K74+K96+K119+K141+K162","v":0},{"$f":"L12+L32+L53+L74+L96+L119+L141+L162","v":0},null,{"$f":"N12+N32+N53+N74+N96+N119+N141+N162","v":0},{"$f":"C182+F182+I182+L182","v":0},{"$f":"E182+H182+K182+N182","v":0}]
[]
["Additional Explanations/Comments (as necessary):"]

{"sheet":"b. Fringe Benefits","index":4,"n_rows":24,"n_cols":9,"rows_kept":24,"cut":false,"hidden":false,"merged":[[15,9,17,11],[0,0,0,3],[0,5,0,6],[17,1,17,7],[10,0,11,7],[5,0,5,2],[6,0,6,2],[24,0,24,7],[15,1,15,7],[1,0,1,7],[2,0,2,2],[3,0,3,2],[9,0,9,2],[16,1,16,7],[14,1,14,7],[13,0,13,7],[19,0,21,7],[4,0,4,2],[7,0,7,2],[8,0,8,2],[23,0,23,4],[12,0,12,7]]}
["Budget Justification for SF 424A Budget",null,null,null,"Award Recipient:",{"$f":"'Instructions and Summary'!B4","v":0},null,{"$f":"'Instructions and Summary'!H1","v":"06/21/18   V 6.18"}]
["b. Fringe Benefits"]
["Rate Type:",null,null,"Phase I  (12 Months)","Phase II-Year 1 (12 Months)","Phase II-Year 2 (12 Months)","Phase IIS (12 Months)","Total"]
[null,null,null,0,0,0,0]
[null,null,null,0,0,0,0]
[null,null,null,0,0,0,0]
[null,null,null,0,0,0,0]
[null,null,null,0,0,0,0]
[null,null,null,0,0,0,0]
["Total fringe requested:",null,null,0,0,0,0,{"$f":"SUM(D10:G10)","v":0}]
[{"$f":"IF(A15=A17,\"One box should be checked in the fringe rate agreement section.\",\"\")","v":"One box should be checked in the fringe rate agreement section."}]
[]
["Applicants are required to indicate if they have a Federally approved fringe benefit rate agreement.\n\n"]
["If reimbursement for fringe benefits is requested, a Federally approved fringe benefit rate agreement, or a fringe benefit rate proposal is required in accordance with the instructions below.  The fringe benefit rate proposal must be accepted by ARPA-E for estimating purposes.  Calculate the fringe rate/dollars and enter this information above."]
[null,"A fringe benefit rate has been negotiated with, or approved by, a Federal government agency.  A copy of the latest rate agreement is included with the Full Application (*see information below). "]
[]
[null,"A fringe benefit rate has not been negotiated with, or approved by, a Federal agency (*see information below)."]
[null,"If an Applicant is selected for award negotiations and does not have a Federally approved fringe benefit rate agreement, then the Applicant is required to submit an Indirect Rate Proposal to the Contracting Officer.  A template for Indirect Rate Proposals is available at http://arpa-e.energy.gov/FundingAgreements/Overview.aspx.  The Applicant must provide this information to the Contracting Officer at ARPA-E-CO@hq.doe.gov within 2 days after the receiving the award notification. In the subject line of the email, please state “Rate Proposal” and include the Applicant’s name, FOA name and number, and application control number.",{"$nulls":6},"X"]
[]
["*IMPORTANT:  In the space provided below (or as an attachment) provide a complete explanation and the full calculations used to derive the total fringe costs.  If the total fringe costs are a cumulative amount of more than one calculation or rate application, the explanation and calculations should identify all rates used, along with the base they were applied to (and how the base was derived), and a total for each (along with grand total).  Do not average the rates and apply them to get one fringe cost percentage.  NOTE:  You must apply the fringe benefit rate to both the Federal Share and Recipient Cost Share."]
[]
[]
[]
["Explanations/Comments/Calculations/Formula:"]

{"sheet":"c. Travel","index":5,"n_rows":201,"n_cols":8,"rows_kept":201,"cut":false,"hidden":false,"merged":[[196,0,196,7],[200,0,200,7],[97,0,97,7],[6,0,6,7],[50,0,50,7],[121,0,121,5],[144,0,144,5],[145,0,145,5],[95,0,95,5],[147,0,147,7],[148,0,148,5],[2,0,2,7],[27,0,27,5],[47,0,47,5],[74,0,74,5],[94,0,94,5],[48,0,48,5],[0,7,0,8],[197,0,197,5],[7,0,7,5],[51,0,51,5],[75,0,75,5],[98,0,98,5],[122,0,122,5],[28,0,28,5],[146,0,146,7],[1,0,1,7],[0,4,0,6],[0,2,0,3],[171,0,171,5],[172,0,172,5],[194,0,194,5],[195,0,195,5]]}
["Budget Justification for SF 424A Budget",null,"Award Recipient:",null,{"$f":"'Instructions and Summary'!B4","v":0},null,null,{"$f":"'Instructions and Summary'!H1","v":"06/21/18   V 6.18"}]
["c. Travel"]
["PLEASE READ!!!\n\nProvide travel detail as requested below, identifying total Foreign and Domestic Travel as separate items.  \"Purpose of travel\" are items such as professional conference, DOE sponsored meeting, project management meeting, etc.  The Basis for Estimating Costs are items such as past trips, current quotations, Federal Travel Regulations, etc. Note: Non-travel related expenses for the ARPA-E Annual Energy Summit must be approved in advance by the Contracting Officer.  Applicants must submit requests to the Contracting Officer at ARPA-E-CO@hq.doe.gov at least 30 days in advance of the ARPA-E Annual Summit.  In the subject line of the email, please state “Request for Non-Travel Expenses for ARPA-E Energy Innovation Summit” and include the Applicant’s name, FOA name and number, and application control number.  \n\n\nNOTE: All projects should budget for one visit with ARPA-E Program Directors in Washington, and one ARPA-E designated conference per year during Phase II and Phase IIS.  This travel is not required during Phase I and is not required of subrecipients."]
[]
["Purpose of travel","No. of Travelers","Depart From \n","Destination \n","No. of Days","Cost per Traveler","Cost per Trip","Basis for Estimating Costs"]
["EXAMPLE ONLY!!!   Visit to PV cell mfr. to set up vendor agreement",2,null,null,2,650,{"$f":"F6*B6","v":1300},"Internet prices"]
["Phase I (12 Months)"]
["Domestic Travel"]
[{"$nulls":6},{"$f":"F9*B9","v":0}]
[{"$nulls":6},0]
[{"$nulls":6},0]
[{"$nulls":6},0]
[{"$nulls":6},0]
[{"$nulls":6},0]
[{"$nulls":6},0]
[{"$nulls":6},0]
[{"$nulls":6},0]
[{"$nulls":6},0]
[{"$nulls":6},0]
[{"$nulls":6},0]
[{"$nulls":6},0]
[{"$nulls":6},0]
[{"$nulls":6},0]
[{"$nulls":6},0]
[{"$nulls":6},0]
[{"$nulls":6},0]
[{"$nulls":6},0]
["Domestic Travel Subtotal",{"$nulls":5},{"$f":"SUM(G9:G27)","v":0}]
["International Travel"]
[{"$nulls":6},{"$f":"F30*B30","v":0}]
[{"$nulls":6},{"$f":"F31*B31","v":0}]
[{"$nulls":6},0]
[{"$nulls":6},0]
[{"$nulls":6},0]
[{"$nulls":6},0]
[{"$nulls":6},0]
[{"$nulls":6},0]
[{"$nulls":6},0]
[{"$nulls":6},0]
[{"$nulls":6},0]
[{"$nulls":6},0]
[{"$nulls":6},0]
[{"$nulls":6},0]
[{"$nulls":6},{"$f":"F44*B44","v":0}]
[{"$nulls":6},{"$f":"F45*B45","v":0}]
[{"$nulls":6},{"$f":"F46*B46","v":0}]
[{"$nulls":6},{"$f":"F47*B47","v":0}]
["International Travel Subtotal",{"$nulls":5},{"$f":"SUM(G30:G47)","v":0}]
["Phase I Total",{"$nulls":5},{"$f":"G28+G48","v":0}]
[]
["Phase II-Year 1 (12 Months)"]
["Domestic Travel"]
[{"$nulls":6},{"$f":"F53*B53","v":0}]
[{"$nulls":6},0]
[{"$nulls":6},0]
[{"$nulls":6},0]
[{"$nulls":6},0]
[{"$nulls":6},0]
[{"$nulls":6},0]
[{"$nulls":6},0]
[{"$nulls":6},0]
[{"$nulls":6},0]
[{"$nulls":6},0]
[{"$nulls":6},0]
[{"$nulls":6},0]
[{"$nulls":6},0]
[{"$nulls":6},0]
[{"$nulls":6},0]
[{"$nulls":6},0]
[{"$nulls":6},0]
[{"$nulls":6},0]
[{"$nulls":6},0]
[{"$nulls":6},0]
[{"$nulls":6},0]
["Domestic Travel Subtotal",{"$nulls":5},{"$f":"SUM(G53:G74)","v":0}]
["International Travel"]
[{"$nulls":6},{"$f":"F77*B77","v":0}]
[{"$nulls":6},{"$f":"F78*B78","v":0}]
[{"$nulls":6},0]
[{"$nulls":6},0]
[{"$nulls":6},0]
[{"$nulls":6},0]
[{"$nulls":6},0]
[{"$nulls":6},0]
[{"$nulls":6},0]
[{"$nulls":6},0]
[{"$nulls":6},0]
[{"$nulls":6},0]
[{"$nulls":6},0]
[{"$nulls":6},0]
[{"$nulls":6},{"$f":"F91*B91","v":0}]
[{"$nulls":6},0]
[{"$nulls":6},{"$f":"F93*B93","v":0}]
[{"$nulls":6},{"$f":"F94*B94","v":0}]
["International Travel Subtotal",{"$nulls":5},{"$f":"SUM(G77:G94)","v":0}]
["Phase II-Year 1 Total",{"$nulls":5},{"$f":"G75+G95","v":0}]
[]
["Phase II- Year 2 (12 Months)"]
["Domestic Travel"]
[{"$nulls":6},{"$f":"F100*B100","v":0}]
[{"$nulls":6},0]
[{"$nulls":6},0]
[{"$nulls":6},0]
[{"$nulls":6},0]
[{"$nulls":6},0]
[{"$nulls":6},0]
[{"$nulls":6},0]
[{"$nulls":6},0]
[{"$nulls":6},0]
[{"$nulls":6},0]
[{"$nulls":6},0]
[{"$nulls":6},0]
[{"$nulls":6},0]
[{"$nulls":6},0]
[{"$nulls":6},0]
[{"$nulls":6},0]
[{"$nulls":6},0]
[{"$nulls":6},0]
[{"$nulls":6},0]
[{"$nulls":6},0]
[{"$nulls":6},0]
["Domestic Travel Subtotal",{"$nulls":5},{"$f":"SUM(G100:G121)","v":0}]
["International Travel"]
[{"$nulls":6},{"$f":"F124*B124","v":0}]
[{"$nulls":6},{"$f":"F125*B125","v":0}]
[{"$nulls":6},0]
[{"$nulls":6},0]
[{"$nulls":6},0]
[{"$nulls":6},0]
[{"$nulls":6},0]
[{"$nulls":6},0]
[{"$nulls":6},0]
[{"$nulls":6},0]
[{"$nulls":6},0]
[{"$nulls":6},0]
[{"$nulls":6},0]
[{"$nulls":6},0]
[{"$nulls":6},0]
[{"$nulls":6},0]
[{"$nulls":6},{"$f":"F140*B140","v":0}]
[{"$nulls":6},0]
[{"$nulls":6},{"$f":"F142*B142","v":0}]
[{"$nulls":6},{"$f":"F143*B143","v":0}]
[{"$nulls":6},{"$f":"F144*B144","v":0}]
["International Travel Subtotal",{"$nulls":5},{"$f":"SUM(G124:G144)","v":0}]
["Phase II-Year 2 Total",{"$nulls":5},{"$f":"G122+G145","v":0}]
[]
["Phase IIS (12 Months)"]
["Domestic Travel"]
[{"$nulls":6},{"$f":"F150*B150","v":0}]
[{"$nulls":6},0]
[{"$nulls":6},0]
[{"$nulls":6},0]
[{"$nulls":6},0]
[{"$nulls":6},0]
[{"$nulls":6},0]
[{"$nulls":6},0]
[{"$nulls":6},0]
[{"$nulls":6},0]
[{"$nulls":6},0]
[{"$nulls":6},0]
[{"$nulls":6},0]
[{"$nulls":6},0]
[{"$nulls":6},0]
[{"$nulls":6},0]
[{"$nulls":6},0]
[{"$nulls":6},0]
[{"$nulls":6},0]
[{"$nulls":6},0]
[{"$nulls":6},0]
[{"$nulls":6},0]
["Domestic Travel Subtotal",{"$nulls":5},{"$f":"SUM(G150:G171)","v":0}]
["International Travel"]
[{"$nulls":6},{"$f":"F174*B174","v":0}]
[{"$nulls":6},{"$f":"F175*B175","v":0}]
[{"$nulls":6},0]
[{"$nulls":6},0]
[{"$nulls":6},0]
[{"$nulls":6},0]
[{"$nulls":6},0]
[{"$nulls":6},0]
[{"$nulls":6},0]
[{"$nulls":6},0]
[{"$nulls":6},0]
[{"$nulls":6},0]
[{"$nulls":6},0]
[{"$nulls":6},0]
[{"$nulls":6},0]
[{"$nulls":6},0]
[{"$nulls":6},0]
[{"$nulls":6},0]
[{"$nulls":6},{"$f":"F192*B192","v":0}]
[{"$nulls":6},{"$f":"F193*B193","v":0}]
[{"$nulls":6},{"$f":"F194*B194","v":0}]
["International Travel Subtotal",{"$nulls":5},{"$f":"SUM(G174:G194)","v":0}]
["Phase IIS Total",{"$nulls":5},{"$f":"G172+G195","v":0}]
[]
["PROJECT TOTAL",{"$nulls":5},{"$f":"G49+G96+G146+G196","v":0}]
[]
["Additional Explanations/Comments (as necessary):"]
["NOTE: No visit with ARPA-E Program Director in Washington, DC is to be budgeted for Phase I travel costs. "]

{"sheet":"d. Equipment","index":6,"n_rows":211,"n_cols":6,"rows_kept":211,"cut":false,"hidden":false,"merged":[[211,0,211,5],[1,0,1,5],[45,0,45,5],[96,0,96,5],[2,0,2,5],[6,0,6,5],[210,0,210,3],[43,0,43,2],[94,0,94,2],[150,0,150,2],[43,4,43,5],[94,4,94,5],[152,0,152,5],[206,0,206,2],[207,0,207,5],[208,4,208,5],[151,0,151,5],[0,3,0,4],[0,5,0,6],[208,0,208,2]]}
["Budget Justification for SF 424A Budget",null,"Award Recipient:",{"$f":"'Instructions and Summary'!B4","v":0},null,{"$f":"'Instructions and Summary'!H1","v":"06/21/18   V 6.18"}]
["d. Equipment"]
["PLEASE READ!!!\n\n\"Equipment\" is generally defined as an item with an acquisition cost greater than $5,000 and a useful life expectancy of more than one year.  Further definitions can be found at 2 C.F.R. 200.\n\nList all proposed equipment below, providing a basis of cost such as vendor quotes, catalog prices, prior invoices, etc., and briefly justify its need as it applies to the Statement of Project Objectives and accompanying Technical Milestones and Deliverables.  If it is existing equipment, and the value of its contribution to the project budget is being shown as cost share, provide logical support for the estimated value shown.  If it is new equipment which will retain a useful life upon completion of the project, provide logical support for the estimated value shown.\n\nFor equipment with a unit price of $50,000.00 or greater, also include a copy of the associated vendor quote or catalog price list.\n"]
[]
["Equipment Item","Qty","Unit Cost         ","Total Cost             ","Basis of Cost","Justification of Need"]
["EXAMPLE ONLY!!!   Thermal shock chamber",2,20000,{"$f":"B6*C6","v":40000},"Vendor Quote","Reliability testing of PV modules- Task 4.3"]
["Phase I (12 Months)"]
[null,null,null,{"$f":"B8*C8","v":0}]
[null,null,null,0]
[null,null,null,0]
[null,null,null,0]
[null,null,null,0]
[null,null,null,0]
[null,null,null,0]
[null,null,null,0]
[null,null,null,0]
[null,null,null,0]
[null,null,null,0]
[null,null,null,0]
[null,null,null,0]
[null,null,null,0]
[null,null,null,0]
[null,null,null,0]
[null,null,null,0]
[null,null,null,0]
[null,null,null,0]
[null,null,null,0]
[null,null,null,0]
[null,null,null,0]
[null,null,null,0]
[null,null,null,0]
[null,null,null,0]
[null,null,null,0]
[null,null,null,0]
[null,null,null,0]
[null,null,null,0]
[null,null,null,0]
[null,null,null,0]
[null,null,null,0]
[null,null,null,0]
[null,null,null,0]
[null,null,null,0]
[null,null,null,0]
["Phase I Total",null,null,{"$f":"SUM(D8:D43)","v":0}]
[]
["Phase II-Year 1 (12 Months)"]
[null,null,null,{"$f":"B47*C47","v":0}]
[null,null,null,{"$f":"B48*C48","v":0}]
[null,null,null,0]
[null,null,null,0]
[null,null,null,0]
[null,null,null,0]
[null,null,null,0]
[null,null,null,0]
[null,null,null,0]
[null,null,null,0]
[null,null,null,0]
[null,null,null,0]
[null,null,null,0]
[null,null,null,0]
[null,null,null,0]
[null,null,null,0]
[null,null,null,0]
[null,null,null,0]
[null,null,null,0]
[null,null,null,0]
[null,null,null,0]
[null,null,null,0]
[null,null,null,0]
[null,null,null,0]
[null,null,null,0]
[null,null,null,0]
[null,null,null,0]
[null,null,null,0]
[null,null,null,0]
[null,null,null,0]
[null,null,null,0]
[null,null,null,0]
[null,null,null,0]
[null,null,null,0]
[null,null,null,0]
[null,null,null,0]
[null,null,null,0]
[null,null,null,0]
[null,null,null,0]
[null,null,null,0]
[null,null,null,0]
[null,null,null,0]
[null,null,null,0]
[null,null,null,0]
[null,null,null,0]
[null,null,null,0]
[null,null,null,0]
[null,null,null,0]
["Phase II-Year 1 Total",null,null,{"$f":"SUM(D47:D94)","v":0}]
[]
["Phase II-Year 2 (12 Months)"]
[null,null,null,{"$f":"B98*C98","v":0}]
[null,null,null,{"$f":"B99*C99","v":0}]
[null,null,null,0]
[null,null,null,0]
[null,null,null,0]
[null,null,null,0]
[null,null,null,0]
[null,null,null,0]
[null,null,null,0]
[null,null,null,0]
[null,null,null,0]
[null,null,null,0]
[null,null,null,0]
[null,null,null,0]
[null,null,null,0]
[null,null,null,0]
[null,null,null,0]
[null,null,null,0]
[null,null,null,0]
[null,null,null,0]
[null,null,null,0]
[null,null,null,0]
[null,null,null,0]
[null,null,null,0]
[null,null,null,0]
[null,null,null,0]
[null,null,null,0]
[null,null,null,0]
[null,null,null,0]
[null,null,null,0]
[null,null,null,0]
[null,null,null,0]
[null,null,null,0]
[null,null,null,0]
[null,null,null,0]
[null,null,null,0]
[null,null,null,0]
[null,null,null,0]
[null,null,null,0]
[null,null,null,0]
[null,null,null,0]
[null,null,null,0]
[null,null,null,0]
[null,null,null,{"$f":"B141*C141","v":0}]
[null,null,null,0]
[null,null,null,0]
[null,null,null,0]
[null,null,null,0]
[null,null,null,0]
[null,null,null,0]
[null,null,null,0]
[null,null,null,0]
[null,null,null,0]
["Phase II-Year 2 Total",null,null,{"$f":"SUM(D98:D150)","v":0}]
[]
["Phase IIS (12 Months)"]
[null,null,null,{"$f":"B154*C154","v":0}]
[null,null,null,{"$f":"B155*C155","v":0}]
[null,null,null,0]
[null,null,null,0]
[null,null,null,0]
[null,null,null,0]
[null,null,null,0]
[null,null,null,0]
[null,null,null,0]
[null,null,null,0]
[null,null,null,0]
[null,null,null,0]
[null,null,null,0]
[null,null,null,0]
[null,null,null,0]
[null,null,null,0]
[null,null,null,0]
[null,null,null,0]
[null,null,null,0]
[null,null,null,0]
[null,null,null,0]
[null,null,null,0]
[null,null,null,0]
[null,null,null,0]
[null,null,null,0]
[null,null,null,0]
[null,null,null,0]
[null,null,null,0]
[null,null,null,0]
[null,null,null,0]
[null,null,null,0]
[null,null,null,0]
[null,null,null,0]
[null,null,null,0]
[null,null,null,0]
[null,null,null,0]
[null,null,null,0]
[null,null,null,0]
[null,null,null,0]
[null,null,null,0]
[null,null,null,0]
[null,null,null,0]
[null,null,null,0]
[null,null,null,0]
[null,null,null,0]
[null,null,null,0]
[null,null,null,0]
[null,null,null,0]
[null,null,null,0]
[null,null,null,0]
[null,null,null,0]
[null,null,null,0]
[null,null,null,0]
["Phase IIS Total",null,null,{"$f":"SUM(D154:D206)","v":0}]
[]
["PROJECT TOTAL",null,null,{"$f":"D44+D95+D151+D207","v":0}]
[]
["Additional Explanations/Comments (as necessary):"]

{"sheet":"e. Supplies","index":7,"n_rows":296,"n_cols":6,"rows_kept":296,"cut":false,"hidden":false,"merged":[[296,0,296,5],[295,0,295,2],[221,4,221,5],[293,4,293,5],[293,0,293,2],[223,0,223,5],[291,0,291,2],[291,4,291,5],[292,0,292,5],[221,0,221,2],[222,0,222,5],[0,5,0,6],[0,3,0,4],[1,0,1,5],[153,0,153,5],[2,0,2,5],[6,0,6,5],[81,0,81,5],[79,4,79,5],[151,4,151,5],[151,0,151,2],[79,0,79,2]]}
["Budget Justification for SF 424A Budget",null,"Award Recipient:",{"$f":"'Instructions and Summary'!B4","v":0},null,{"$f":"'Instructions and Summary'!H1","v":"06/21/18   V 6.18"}]
["e. Supplies"]
["PLEASE READ!!!\n\n\"Supplies\" are generally defined as an item with an acquisition cost of $5,000 or less and a useful life expectancy of less than one year.  Supplies are generally consumed during the project performance. Further definitions can be found at 2 C.F.R. 200.\n\nList all proposed supplies below, providing a bases of cost such as vendor quotes, catalog prices, prior invoices, etc., and briefly justifying the need for the Supplies as they apply to the Statement of Project Objectives and accompanying Technical Milestones and Deliverables.  Note that Supply items must be direct costs to the project at this budget category, and not duplicative of supply costs included in the indirect pool that is the basis of the indirect rate applied for this project.\n\n"]
[]
["General Category of Supplies","Qty","Unit Cost         ","Total Cost             ","Basis of Cost","Justification of Need"]
["EXAMPLE ONLY!!!  Wireless DAS components",10,360,3600,"Catalog price","For Alpha prototype - Task 2.4"]
["Phase I Year 1 (12 Months)"]
[null,null,null,{"$f":"B8*C8","v":0}]
[null,null,null,{"$f":"B9*C9","v":0}]
[null,null,null,0]
[null,null,null,0]
[null,null,null,0]
[null,null,null,0]
[null,null,null,0]
[null,null,null,0]
[null,null,null,0]
[null,null,null,0]
[null,null,null,0]
[null,null,null,0]
[null,null,null,0]
[null,null,null,0]
[null,null,null,0]
[null,null,null,0]
[null,null,null,0]
[null,null,null,0]
[null,null,null,0]
[null,null,null,0]
[null,null,null,0]
[null,null,null,0]
[null,null,null,0]
[null,null,null,0]
[null,null,null,0]
[null,null,null,0]
[null,null,null,0]
[null,null,null,0]
[null,null,null,0]
[null,null,null,0]
[null,null,null,0]
[null,null,null,0]
[null,null,null,0]
[null,null,null,0]
[null,null,null,0]
[null,null,null,0]
[null,null,null,0]
[null,null,null,0]
[null,null,null,0]
[null,null,null,0]
[null,null,null,0]
[null,null,null,0]
[null,null,null,0]
[null,null,null,0]
[null,null,null,0]
[null,null,null,0]
[null,null,null,0]
[null,null,null,0]
[null,null,null,0]
[null,null,null,0]
[null,null,null,0]
[null,null,null,0]
[null,null,null,0]
[null,null,null,0]
[null,null,null,0]
[null,null,null,0]
[null,null,null,0]
[null,null,null,0]
[null,null,null,0]
[null,null,null,0]
[null,null,null,0]
[null,null,null,0]
[null,null,null,0]
[null,null,null,0]
[null,null,null,0]
[null,null,null,0]
[null,null,null,0]
[null,null,null,0]
[null,null,null,0]
[null,null,null,0]
[null,null,null,0]
[null,null,null,0]
["Year 1 Total",null,null,{"$f":"SUM(D8:D79)","v":0}]
[]
["Phase II Year 1 (12 Months)"]
[null,null,null,{"$f":"B83*C83","v":0}]
[null,null,null,{"$f":"B84*C84","v":0}]
[null,null,null,0]
[null,null,null,0]
[null,null,null,0]
[null,null,null,0]
[null,null,null,0]
[null,null,null,0]
[null,null,null,0]
[null,null,null,0]
[null,null,null,0]
[null,null,null,0]
[null,null,null,0]
[null,null,null,0]
[null,null,null,0]
[null,null,null,0]
[null,null,null,0]
[null,null,null,0]
[null,null,null,0]
[null,null,null,0]
[null,null,null,0]
[null,null,null,0]
[null,null,null,0]
[null,null,null,0]
[null,null,null,0]
[null,null,null,0]
[null,null,null,0]
[null,null,null,0]
[null,null,null,0]
[null,null,null,0]
[null,null,null,0]
[null,null,null,0]
[null,null,null,0]
[null,null,null,0]
[null,null,null,0]
[null,null,null,0]
[null,null,null,0]
[null,null,null,0]
[null,null,null,0]
[null,null,null,0]
[null,null,null,0]
[null,null,null,0]
[null,null,null,0]
[null,null,null,0]
[null,null,null,0]
[null,null,null,0]
[null,null,null,0]
[null,null,null,0]
[null,null,null,0]
[null,null,null,0]
[null,null,null,0]
[null,null,null,0]
[null,null,null,0]
[null,null,null,0]
[null,null,null,0]
[null,null,null,0]
[null,null,null,0]
[null,null,null,0]
[null,null,null,0]
[null,null,null,0]
[null,null,null,0]
[null,null,null,0]
[null,null,null,0]
[null,null,null,0]
[null,null,null,0]
[null,null,null,0]
[null,null,null,0]
[null,null,null,{"$f":"B150*C150","v":0}]
[null,null,null,0]
["Year 2 Total",null,null,{"$f":"SUM(D83:D151)","v":0}]
[]
["Phase II Year 2 (12 months)"]
[null,null,null,{"$f":"B155*C155","v":0}]
[null,null,null,{"$f":"B156*C156","v":0}]
[null,null,null,{"$f":"B157*C157","v":0}]
[null,null,null,0]
[null,null,null,0]
[null,null,null,0]
[null,null,null,0]
[null,null,null,0]
[null,null,null,0]
[null,null,null,0]
[null,null,null,0]
[null,null,null,0]
[null,null,null,0]
[null,null,null,0]
[null,null,null,0]
[null,null,null,0]
[null,null,null,0]
[null,null,null,0]
[null,null,null,0]
[null,null,null,0]
[null,null,null,0]
[null,null,null,0]
[null,null,null,0]
[null,null,null,0]
[null,null,null,0]
[null,null,null,0]
[null,null,null,0]
[null,null,null,0]
[null,null,null,0]
[null,null,null,0]
[null,null,null,0]
[null,null,null,0]
[null,null,null,0]
[null,null,null,0]
[null,null,null,0]
[null,null,null,0]
[null,null,null,0]
[null,null,null,0]
[null,null,null,0]
[null,null,null,0]
[null,null,null,0]
[null,null,null,0]
[null,null,null,0]
[null,null,null,0]
[null,null,null,0]
[null,null,null,0]
[null,null,null,0]
[null,null,null,0]
[null,null,null,0]
[null,null,null,0]
[null,null,null,0]
[null,null,null,0]
[null,null,null,0]
[null,null,null,0]
[null,null,null,0]
[null,null,null,0]
[null,null,null,0]
[null,null,null,0]
[null,null,null,0]
[null,null,null,0]
[null,null,null,0]
[null,null,null,{"$f":"B216*C216","v":0}]
[null,null,null,0]
[null,null,null,0]
[null,null,null,0]
[null,null,null,0]
[null,null,null,0]
["Year 3 Total",null,null,{"$f":"SUM(D155:D221)","v":0}]
[]
["Phase IIS (12 Months)"]
[null,null,null,{"$f":"B225*C225","v":0}]
[null,null,null,{"$f":"B226*C226","v":0}]
[null,null,null,{"$f":"B227*C227","v":0}]
[null,null,null,0]
[null,null,null,0]
[null,null,null,0]
[null,null,null,0]
[null,null,null,0]
[null,null,null,0]
[null,null,null,0]
[null,null,null,0]
[null,null,null,0]
[null,null,null,0]
[null,null,null,0]
[null,null,null,0]
[null,null,null,0]
[null,null,null,0]
[null,null,null,0]
[null,null,null,0]
[null,null,null,0]
[null,null,null,0]
[null,null,null,0]
[null,null,null,0]
[null,null,null,0]
[null,null,null,0]
[null,null,null,0]
[null,null,null,0]
[null,null,null,0]
[null,null,null,0]
[null,null,null,0]
[null,null,null,0]
[null,null,null,0]
[null,null,null,0]
[null,null,null,0]
[null,null,null,0]
[null,null,null,0]
[null,null,null,0]
[null,null,null,0]
[null,null,null,0]
[null,null,null,0]
[null,null,null,0]
[null,null,null,0]
[null,null,null,0]
[null,null,null,0]
[null,null,null,0]
[null,null,null,0]
[null,null,null,0]
[null,null,null,0]
[null,null,null,0]
[null,null,null,0]
[null,null,null,0]
[null,null,null,0]
[null,null,null,0]
[null,null,null,0]
[null,null,null,0]
[null,null,null,0]
[null,null,null,0]
[null,null,null,0]
[null,null,null,0]
[null,null,null,0]
[null,null,null,0]
[null,null,null,0]
[null,null,null,0]
[null,null,null,0]
[null,null,null,0]
[null,null,null,0]
[null,null,null,{"$f":"B291*C291","v":0}]
["Year 4 Total",null,null,{"$f":"SUM(D225:D291)","v":0}]
[]
["PROJECT TOTAL",null,null,{"$f":"D222+D152+D80+D292","v":0}]
[]
["Additional Explanations/Comments (as necessary):"]

{"sheet":"f. Contractual","index":8,"n_rows":56,"n_cols":8,"rows_kept":56,"cut":false,"hidden":false,"merged":[[56,0,56,6],[0,0,0,1],[2,0,2,6],[1,0,1,6],[55,0,55,1],[3,0,3,6],[53,0,53,1],[39,0,39,1],[51,0,51,1],[20,0,20,1],[0,2,0,3]]}
["Budget Justification for SF 424A Budget                                                             Award Recipient:",null,{"$f":"'Instructions and Summary'!B4","v":0},null,null,null,{"$f":"'Instructions and Summary'!H1","v":"06/21/18   V 6.18"}]
["f. Contractual"]
["PLEASE READ!!!\n\nThe entity completing this form must provide all costs related to subrecipients, vendors, contractors, consultants and FFRDC partners in the applicable boxes below.  \n\nSubrecipients (partners, subawardees): \nEach Subrecipient incurring greater than or equal to 10% of the Total Project Costs must complete a separate Budget Justification Workbook to justify its proposed budget.  The Subrecipients’ SF-424A and Budget Justification Workbooks may be completed by either the Subrecipients themselves or by the preparer of this workbook.  The budget totals on the Subrecipients' workbooks must match the Subrecipient entries described below.\n\nSubrecipients incurring less than 10% of the Total Project Costs are not required to complete a separate Budget Justification workbook.  However, such Subrecipients are required to provide supporting documentation to justify their proposed budgets.  At a minimum, the supporting documentation must include a sufficient basis for the estimated costs for ARPA-E evaluation.  Please also refer to instructions in tabs b. Fringe Benefits and i. Indirect Costs."]
["Vendors (includes contractors and consultants):\nList all vendors, contractors and consultants supplying commercial supplies or services used to support the project.  The support to justify vendor costs (in any amount) should provide the purpose for the products or services and a basis of the estimated costs that is considered sufficient for ARPA-E evaluation.\n\nFederal Research and Development Centers (FFRDCs):\nEach FFRDC incurring greater than or equal to 10% of the Total Project Costs must complete a separate SF-424A and separate Budget Justification worksheet to justify its proposed budget.  The FFRDC workbooks may be completed by either the Subrecipients themselves or by the preparer of this workbook.  The budget totals on the Subrecipient's SF-424A and Budget Justification Workbook must match the Subrecipient entries described below.  DOE/NNSA FFRDCs are also required to submit a Field Work Proposal in accordance with the instructions in DOE O 412.1, “Work Authorization System” (http://management.energy.gov/business_doe/business_forms.htm) in the Technical Volume of the Full Application.  \n\nFFRDCs incurring less than 10% of the Total Project Cost are not required to complete a separate SF-424A and Budget Justification Workbook.  However, FFRDCs are required to provide supporting documentation to justify their proposed budgets.  At a minimum, the supporting documentation must include a sufficient basis for the estimated costs for ARPA-E evaluation. All DOE/NNSA FFRDCs are also required to submit a Field Work Proposal.  Please also refer to instructions in tabs b. Fringe Benefits and i. Indirect Costs.                                                                    \n             "]
[]
["Sub-Recipient\nName/Organization","Purpose/Tasks in Statement of Project Objectives (SOPO)","Phase I Year 1 (12 Months)","Phase II Year 1 (12 Months)","Phase II Year 2 (12 Months)","Phase 2S (12 Months)","Project Total"]
["EXAMPLE ONLY!!!  XYZ Corp.","Partner to develop optimal fresnel lens for Gen 2 product - Task 2.4",80000,64000,48000,32000,{"$f":"SUM(C7:F7)","v":224000},{"$f":"IF(G7>100000,\"Separate budget forms required for this sub-recipient!\", \" \")","v":"Separate budget forms required for this sub-recipient!"}]
[{"$nulls":6},0,{"$f":"IF(G8>=100000,\"Separate budget forms required for this sub-recipient!\", \" \")","v":" "}]
[{"$nulls":6},0]
[{"$nulls":6},0]
[{"$nulls":6},0]
[{"$nulls":6},0]
[{"$nulls":6},0]
[{"$nulls":6},0,{"$f":"IF(G14>100000,\"Separate budget forms required for this sub-recipient!\", \" \")","v":" "}]
[{"$nulls":6},0," "]
[{"$nulls":6},0," "]
[{"$nulls":6},0," "]
[{"$nulls":6},0," "]
[{"$nulls":6},0," "]
[{"$nulls":6},0," "]
["Total Sub-Recipient",null,{"$f":"SUM(C8:C20)","v":0},{"$f":"SUM(D8:D20)","v":0},{"$f":"SUM(E8:E20)","v":0},{"$f":"SUM(F8:F20)","v":0},0]
[]
["Vendor \nName/Organization","Product or Service, Purpose/Need and Basis of Cost\n(Provide additional support at bottom of page as needed)","Phase I Year 1 (12 Months)","Phase II Year 1 (12 Months)","Phase II Year 2 (12 Months)","Phase 2S (12 Months)","Project Total"]
["EXAMPLE ONLY!!!  ABC Corp.","Vendor for developing custom robotics to perform lens inspection,  alignment, and placement (Task 4 ).  Required for expanding CPV module mfg. capacity.  Cost is from competitive quotes.",32900,86500,null,null,{"$f":"SUM(C24:F24)","v":119400}]
[{"$nulls":6},0]
[{"$nulls":6},0]
[{"$nulls":6},0]
[{"$nulls":6},0]
[{"$nulls":6},0]
[{"$nulls":6},0]
[{"$nulls":6},0]
[{"$nulls":6},0]
[{"$nulls":6},0]
[{"$nulls":6},0]
[{"$nulls":6},0]
[{"$nulls":6},0]
[{"$nulls":6},0]
[{"$nulls":6},0]
[{"$nulls":6},0]
["Total Vendor / Organization",null,{"$f":"SUM(C25:C39)","v":0},{"$f":"SUM(D25:D39)","v":0},{"$f":"SUM(E25:E39)","v":0},{"$f":"SUM(F25:F39)","v":0},0]
[]
["FFRDC or GO-GO\n","Purpose","Phase I Year 1 (12 Months)","Phase II Year 1 (12 Months)","Phase II Year 2 (12 Months)","Phase 2S (12 Months)","Project Total"]
[null," ",{"$nulls":4},{"$f":"SUM(C43:F43)","v":0}]
[{"$nulls":6},0]
[{"$nulls":6},0]
[{"$nulls":6},0]
[{"$nulls":6},0]
[{"$nulls":6},0]
[{"$nulls":6},0]
[{"$nulls":6},0]
[{"$nulls":6},0]
["Total FFRDC",null,{"$f":"SUM(C43:C51)","v":0},{"$f":"SUM(D43:D51)","v":0},{"$f":"SUM(E43:E51)","v":0},{"$f":"SUM(F43:F51)","v":0},0]
[]
["Total Contractual",null,{"$f":"C40+C21+C52","v":0},{"$f":"D40+D21+D52","v":0},{"$f":"E40+E21+E52","v":0},{"$f":"F40+F21+F52","v":0},{"$f":"G40+G21+G52","v":0}]
[]
["Additional Explanations/Comments (as necessary):"]

{"sheet":"g. Construction","index":9,"n_rows":44,"n_cols":4,"rows_kept":44,"cut":false,"hidden":false,"merged":[[33,0,33,3],[39,2,39,3],[40,0,40,3],[0,3,0,4],[17,0,17,3],[25,0,25,3],[44,0,44,3],[1,0,1,3],[5,0,5,3],[4,0,4,3],[2,0,2,3],[9,0,9,3],[23,2,23,3],[31,2,31,3],[41,2,41,3],[15,2,15,3],[16,0,16,3],[24,0,24,3],[32,0,32,3]]}
["Budget Justification for SF 424A Budget","Award Recipient:",{"$f":"'Instructions and Summary'!B4","v":0},{"$f":"'Instructions and Summary'!H1","v":"06/21/18   V 6.18"}]
["g. Construction"]
["PLEASE READ!!!\n\n\"Construction\" for the purpose of budgeting, is defined as all types of work done on a particular building, including erecting, altering, or remodeling.  Construction conducted by the award recipient is entered on this page.  Any construction work that is performed by a vendor or subrecipient to the award recipient should be entered under f. Contractual.\n\nList all proposed construction below, providing a basis of cost such as engineering estimates, prior construction, etc., and briefly justify its need as it applies to the Statement of Project Objectives and accompanying Technical Milestones and Deliverables being performed.\n\n"]
[]
["Overall description of construction activities:"]
["EXAMPLE ONLY!!! \"Build wind turbine platform\""]
[]
["General Description","Cost             ","Basis of Cost","Justification of Need"]
["EXAMPLE ONLY!!! Three days of excavation for platform site\n",28000,"Engineering estimate","Site must be prepared for construction of platform."]
["Phase I"]
[]
[]
[]
[]
[]
["Year 1 Total",{"$f":"SUM(B11:B15)","v":0}]
[]
["Phase 2 Year 1"]
[]
[]
[]
[]
[]
["Year 2 Total",{"$f":"SUM(B19:B23)","v":0}]
[]
["Phase II Year 2"]
[]
[]
[]
[]
[]
["Year 3 Total",{"$f":"SUM(B27:B31)","v":0}]
[]
["Phase IIS"]
[]
[]
[]
[]
[]
["Year 4 Total",{"$f":"SUM(B35:B39)","v":0}]
[]
["PROJECT TOTAL",{"$f":"$B$32+$B$24+$B$16+$B$40","v":0}]
[]
["Additional Explanations/Comments (as necessary):"]

{"sheet":"h. Other","index":10,"n_rows":110,"n_cols":4,"rows_kept":110,"cut":false,"hidden":false,"merged":[[85,0,85,3],[109,0,109,2],[110,0,110,3],[106,0,106,3],[0,0,0,1],[0,3,0,4],[1,0,1,3],[2,0,17,3]]}
["Budget Justification for SF 424A Budget               Award Recipient:",null,{"$f":"'Instructions and Summary'!B4","v":0},{"$f":"'Instructions and Summary'!H1","v":"06/21/18   V 6.18"}]
["h. Other Direct Costs"]
["PLEASE READ!!!\n\nApplicants must provide and justify proposed costs related to Other Direct Costs for each phase of the entire budget period.  Other Direct Costs are direct cost items required for the project which do not fit clearly into other categories, and are not included in the indirect pool for which the indirect rate is being applied to this project.  Applicants must provide a basis of cost (e.g., vendor quotes, prior purchases of similar or like items, published price list, etc.).                                                                                                                                                                                                                           \n \nNote for Patent Costs:  ARPA-E will reimburse up to $30,000 in expenditures incurred under the funding agreement for costs and fees relating to the filing and prosecution of U.S. patent applications on subject inventions disclosed to ARPA-E and DOE in accordance with Attachment 2 to the funding agreement (http://arpa-e.energy.gov/FundingAgreements/CooperativeAgreements.aspx).  Prime Recipients may use costs and fees in excess of $30,000 to meet their cost share obligations under the funding agreement.  \n\nARPA-E will not reimburse any costs and fees relating to the filing and prosecution of foreign patent applications on subject inventions disclosed to ARPA-E and DOE in accordance with Attachment 2 to the funding agreement.  However, Prime Recipients may use such costs and fees to meet their cost share obligations. For examples of allowable patent costs, please see Section IV.G.3 of the FOA.  \n\n\n      \n\n"]
{"$rows_empty":16}
["General description"," Cost             ","Basis of Cost","Justification of Need"]
["EXAMPLE ONLY!!!  Grad student tuition",16000,"Established UCD costs","Support of graduate students working on project "]
["EXAMPLE ONLY!!!  Contractual ",10000,"Vendor Quote","Personnel costs to develop commercialization plans"]
["EXAMPLE ONLY!!!  Conferences",4000,"Travel & Conference Expenses ","ARPA-E Energy Summit travel and registration"]
[null,null,"Phase I (12 Months)"]
{"$rows_empty":18}
["Year 1 Total",{"$f":"SUM(B25:B42)","v":0}]
[]
[null,null,"Phase II Year 1 (12 Months)"]
{"$rows_empty":18}
["Year 2 Total",{"$f":"SUM(B46:B63)","v":0}]
[]
[null,null,"Phase II Year 2 (12 Months)"]
{"$rows_empty":18}
["Year 3 Total",{"$f":"SUM(B67:B84)","v":0}]
[]
[null,null,"Phase IIS (12 Months)"]
{"$rows_empty":18}
["Year 4 Total",{"$f":"SUM(B88:B105)","v":0}]
[]
["PROJECT TOTAL",{"$f":"B85+B64+B43+B106","v":0}]
[]
["Additional Explanations/Comments (as necessary):"]

{"sheet":"i. Indirect Costs","index":11,"n_rows":22,"n_cols":13,"rows_kept":22,"cut":false,"hidden":false,"merged":[[13,1,13,10],[15,1,15,10],[14,1,14,10],[16,1,16,10],[0,4,0,5],[4,0,4,2],[5,0,5,2],[6,0,6,2],[7,0,7,2],[0,6,0,7],[22,0,22,10],[12,0,12,10],[11,0,11,10],[14,12,15,13],[0,0,0,3],[0,9,0,10],[21,0,21,8],[8,0,8,2],[2,8,2,9],[3,8,3,9],[8,8,8,9],[1,0,1,10],[2,0,2,2],[3,0,3,2],[19,0,19,10],[9,0,10,10]]}
["Budget Justification for SF 424A Budget          Award Recipient:",null,null,null,{"$f":"'Instructions and Summary'!B4","v":0},null,{"$f":"'Instructions and Summary'!D4","v":"Submitted by: "},null,null,{"$f":"'Instructions and Summary'!H1","v":"06/21/18   V 6.18"}]
["i. Indirect Costs"]
["Rate type:",null,null,"Year 1","Year 2","Year 3","Year 4","Year 5","Total"]
[null,null,null,0,0,0,0,0]
[null,null,null,0,0,0,0,0]
[null,null,null,0,0,0,0,0]
[null,null,null,0,0,0,0,0]
[null,null,null,0,0,0,0,0]
["Total indirect costs requested:",null,null,0,0,0,0,0,{"$f":"SUM(D9:H9)","v":0}]
[{"$f":"IF(A14=A16,\"One box should be checked in the indirect rate agreement section.\",\"\")","v":"One box should be checked in the indirect rate agreement section."}]
[]
["Applicants are required to indicate if they have a Federally approved indirect rate agreement.\n\n"]
["If reimbursement for indirect costs is requested, a federally approved indirect rate agreement , or an indirect rate proposal is required in accordance with the instructions below.   The indirect rate proposal must be accepted by ARPA-E for estimating purposes.  Calculate the indirect rate/dollars and enter this information above. ",{"$nulls":11},"x"]
[null,"An indirect rate has been negotiated with, or approved by, a Federal government agency.  A copy of the latest rate agreement is included with the Full Application (*see information below)."]
[]
[null,"An indirect rate agreement has not been negotiated with, or approved by, a Federal government agency (*see information below). "]
[null,"If an Applicant is selected for award negotiations and does not have a Federally approved indirect rate agreement, then the Applicant is required to submit an Indirect Rate Proposal to the Contracting Officer.  A template for Indirect Rate Proposal is available at http://arpa-e.energy.gov/FundingAgreements/Overview.aspx.  The Applicant must provide this information to the Contracting Officer at ARPA-E-CO@hq.doe.gov within 2 days after the receiving the award notification. In the subject line of the email, please state “Rate Proposal” and include the Applicant’s name, FOA name and number, and application control number."]
[]
[]
["*IMPORTANT:  In the space provided below (or as an attachment) provide a complete explanation and the full calculations used to derive the total indirect costs.  If the total indirect costs are a cumulative amount of more than one calculation or rate application, the explanation and calculations should identify all rates used, along with the base they were applied to (and how the base was derived), and a total for each (along with grand total).  Do not average the rates and apply them to get one indirect cost percentage.  NOTE:  You must apply the indirect rate to both the Federal Share and Recipient Cost Share."]
[]
["Explanations/Comments/Calculations/Formula:"]

{"sheet":"Cost Share","index":12,"n_rows":29,"n_cols":16,"rows_kept":29,"cut":false,"hidden":false,"merged":[[0,5,0,8],[24,0,24,3],[0,0,0,2],[1,0,1,8],[29,0,29,8],[2,0,2,8],[28,0,28,3],[25,5,25,6],[26,4,26,6],[26,0,26,1]]}
["Budget Justification for SF 424A Budget         Award Recipient:",null,null,{"$f":"'Instructions and Summary'!B4","v":0},null,{"$f":"'Instructions and Summary'!H1","v":"06/21/18   V 6.18"}]
["Cost Share"]
["PLEASE READ!!!\n\nApplicants must provide and justify proposed costs related to Cost Share for Phase II and Phase IIS of the project.  Applicants must provide a detailed explanation of the cash or cash value of all cost share proposed for the project.  Please refer to Section III.D of the FOA for guidance on allowable cost share contributions.  Applicants selected for award negotiations must provide cost share commitment letters, as described in Section VI.B.3 of the FOA.  \n\nProject teams are not permitted to receive fees or profits under ARPA-E awards.  All monies must be spent on activities or equipment directly related to meeting the objectives in the Statement of Project Objectives and accompanying Technical Milestones and Deliverables.  Additionally, foregone fee or profit by any member of the proposed Project Team may not be considered cost sharing under any resulting award. \n\n"]
[]
["Organization/Source                 ","Type","Type of Donor (MUST SELECT)","Cost Share Item ","Phase I Year 1 (12 Months)","Phase II Year 1 (12 Months)","Phase II Year 2 (12 Months)","Phase 2S (12 Months)","Total Project Cost Share"]
["EXAMPLE ONLY!!! ABC Company\n","Cash","Other","Project partner ABC Company will provide 40 PV modules for product development at 50% off the of the retail price of $680","There is no Cost Share",4000,4000,5000,{"$f":"SUM(E6:H6)","v":13000}]
[{"$nulls":8},0,null,"Cash"]
[{"$nulls":8},0,null,"In Kind"]
[{"$nulls":8},0,null,"Other"]
[{"$nulls":8},0]
[{"$nulls":8},0]
[{"$nulls":8},0]
[{"$nulls":8},0,null,"Applicant",{"$f":"SUMIF($C$7:$C$24,$K$13,E$7:E$24)","v":0},{"$f":"SUMIF($C$7:$C$24,$K$13,F$7:F$24)","v":0},{"$f":"SUMIF($C$7:$C$24,$K$13,G$7:G$24)","v":0},{"$f":"SUMIF($C$7:$C$24,$K$13,H$7:H$24)","v":0},{"$f":"SUMIF($C$7:$C$24,$K$13,#REF!)","v":{"$error":"#REF!"}}]
[{"$nulls":8},0,null,"State",{"$f":"SUMIF($C$7:$C$24,$K$14,E$7:E$24)","v":0},{"$f":"SUMIF($C$7:$C$24,$K$14,F$7:F$24)","v":0},{"$f":"SUMIF($C$7:$C$24,$K$14,G$7:G$24)","v":0},{"$f":"SUMIF($C$7:$C$24,$K$14,H$7:H$24)","v":0},{"$f":"SUMIF($C$7:$C$24,$K$14,#REF!)","v":{"$error":"#REF!"}}]
[{"$nulls":8},0,null,"Other Sources",{"$f":"SUMIF($C$7:$C$24,$K$15,E$7:E$24)","v":0},{"$f":"SUMIF($C$7:$C$24,$K$15,F$7:F$24)","v":0},{"$f":"SUMIF($C$7:$C$24,$K$15,G$7:G$24)","v":0},{"$f":"SUMIF($C$7:$C$24,$K$15,H$7:H$24)","v":0},{"$f":"SUMIF($C$7:$C$24,$K$15,#REF!)","v":{"$error":"#REF!"}}]
[{"$nulls":8},0]
[{"$nulls":8},0]
[{"$nulls":8},0]
[{"$nulls":8},0]
[{"$nulls":8},0]
[{"$nulls":8},0]
[{"$nulls":8},0]
[{"$nulls":8},0]
[{"$nulls":8},0]
["Totals",null,null,null,{"$f":"SUM(E7:E24)","v":0},{"$f":"SUM(F7:F24)","v":0},{"$f":"SUM(G7:G24)","v":0},{"$f":"SUM(H7:H24)","v":0},0]
[]
["Total Project Cost:  ",null,null,{"$f":"'Instructions and Summary'!F24","v":0},"Cost Share Percent of Award:",null,null,null,{"$f":"IFERROR(I25/D27,\"\")","v":""}]
[]
["Additional Explanations/Comments (as necessary):"]